Workbook

Sheet WNIOSEK
K1: Projekt z dnia 09.04.2025 r.
K2: Załącznik nr 2b
K3: do uchwały Nr
K4: Rady Dzielnicy Bielany
K5: Miasta Stołecznego Warszawy
K6: z dnia
A9: WNIOSEK W SPRAWIE ZMIAN W PLANIE WYDATKÓW BIEŻĄCYCH, w tym UE
A11: Data podpisania umowy o dofinansowanie projektu | D11: -
A12: Poziom dofinansowania (w %) | D12: -
M13: w zł
A14: Stanowisko finansowe | C14: Pozycje finansowe | F14: Obszar funkcjonalny | G14: Program budżetowy | I14: Plan wg stanu na dzień 09.04.2025 r. | J14: Zaangażowanie wg stanu na dzień 09.04.2025 r. | K14: Proponowane zmiany | M14: Plan po zmianach
A15: Nazwa dysponenta | B15: Kod | C15: Dział | D15: Rozdział | E15: § | F15: Kod | G15: Nazwa | H15: Kod | K15: zmniejszenia | L15: zwiększenia
A19: Wydział Kultury | B19: U.03.000 | C19: 921.92105.W4300+000 | F19: GMMW | G19: Przedsięwzięcia artystyczne i kulturalne | H19: B/VII/1/1 | I19: 2625000 | J19: 599120 | K19: 609000 | L19: 0 | M19: 2016000
A20: Wydział Kultury | B20: U.03.000 | C20: 921.92109.W2480+000 | F20: GMMW | G20: Bielański Ośrodek Kultury | H20: B/VII/3/3/2 | I20: 6700000 | J20: 2420000 | K20: 0 | L20: 160000 | M20: 6860000
A21: RAZEM | I21: =SUM(I19:I20) -> 9325000 | J21: =SUM(J19:J20) -> 3019120 | K21: =SUM(K19:K20) -> 609000 | L21: =SUM(L19:L20) -> 160000 | M21: =SUM(M19:M20) -> 8876000
K23: Przewodniczący Rady
K24: Dzielnicy Bielany m.st. Warszawy
K27: Maciej Chmielewski

Sheet ZADANIOWY
P1: Projekt z dnia 09.04.2025 r.
P2: Załącznik nr 2a
P3: do uchwały Nr
P4: Rady Dzielnicy Bielany
P5: Miasta Stołecznego Warszawy
P6: z dnia
A9: PLAN WYDATKÓW na 2025 r. w UKŁADZIE ZADANIOWYM | V9: =IF(COUNTA(V10:V15071)=0,"",COUNTA(V10:V15071)) -> 
A10: D.03.000 | F10: =IF(OR(T11<>"",U11<>""),"Istnieją błędy","") ->  | J10: =J10710 -> 1012075856 | K10: 359612586 | L10: 609000 | M10: 160000 | N10: 609000 | O10: 160000 | P10: 1011626856 | Q10: 359163586
A11: PROGRAM | B11: OPIS | C11: S/P/Z/PZ | D11: Header | E11: DZIAŁ | F11: ROZDZIAŁ | G11: § | H11: NAZWA PARAGRAFU | I11: OBSZAR FUNKCJONALNY | J11: PLAN | K11: w tym Urząd m.st. Warszawy | L11: PLAN Zmiana[-] | M11: PLAN Zmiana[+] | N11: w tym Urząd Zmiana[-] | O11: w tym Urząd Zmiana[+] | P11: PLAN PO ZMIANIE | Q11: w tym Urząd PO ZMIANIE | R11: WYPEŁNIONE POZYCJE | S11: WYPEŁNIONE ZMIANY | T11: =IF(COUNTIF(T12:T10709,"błędny urząd")<>0,"ŹLE","") ->  | U11: =IF(COUNTIF(U12:U10709,"ujemny plan")<>0,"ŹLE","") -> 
A12: I | B12: TRANSPORT I KOMUNIKACJA | C12: I sfera | D12: T | J12: =SUM(J212,J13) -> 7328000 | K12: 7328000 | L12: 0 | M12: 0 | N12: 0 | O12: 0 | P12: 7328000 | Q12: 7328000 | R12: =IF(SUM(J12:Q12)>0,"Tak","") -> Tak | S12: =IF(SUM(L12:O12)>0,"Tak","") ->  | T12: =IF(OR(J12<K12,P12<Q12,L12<N12,M12<O12),"błędny urząd","") ->  | U12: =IF(OR(J12<0,K12<0,P12<0,Q12<0),"ujemny plan","") -> 
A13: I/1 | B13: Komunikacja zbiorowa | C13: 1 program | D13: T | J13: =SUM(J201,J190,J46,J14) -> 0 | K13: 0 | L13: 0 | M13: 0 | N13: 0 | O13: 0 | P13: 0 | Q13: 0
A14: B/I/1/1 | B14: Zakup usług komunikacji miejskiej | C14: 1 zadanie | D14: T | J14: =SUM(J42,J38,J34,J27,J19,J15) -> 0 | K14: 0 | L14: 0 | M14: 0 | N14: 0 | O14: 0 | P14: 0 | Q14: 0
A15: B/I/1/1/1 | B15: Metro Warszawskie | C15: 1 podzadanie | D15: T | E15: 600 | F15: 60004 | J15: =SUM(J16) -> 0 | K15: 0 | L15: 0 | M15: 0 | N15: 0 | O15: 0 | P15: 0 | Q15: 0
A16: B/I/1/1/1 | B16: Metro Warszawskie | C16: 1 podzadanie | D16: NIE | E16: 600 | F16: 60004 | J16: =SUM(J17:J18) -> 0 | K16: 0 | L16: 0 | M16: 0 | N16: 0 | O16: 0 | P16: 0 | Q16: 0
A17: B/I/1/1/1 | B17: Metro Warszawskie | C17: 1 podzadanie | D17: NIE | E17: 600 | F17: 60004 | G17: 4300 | H17: Zakup usług pozostałych | I17: GMMW | P17: =J17+M17-L17 -> 0 | Q17: =K17+O17-N17 -> 0 | R17: =IF(SUM(J17:Q17)>0,"Tak","") ->  | S17: =IF(SUM(L17:O17)>0,"Tak","") ->  | T17: =IF(OR(J17<K17,P17<Q17,L17<N17,M17<O17),"błędny urząd","") ->  | U17: =IF(OR(J17<0,K17<0,P17<0,Q17<0),"ujemny plan","") -> 
A18: B/I/1/1/1 | B18: Metro Warszawskie | C18: 1 podzadanie | D18: NIE | E18: 600 | F18: 60004 | G18: 4530 | H18: Podatek od towarów i usług (VAT) | I18: GMMW | P18: =J18+M18-L18 -> 0 | Q18: =K18+O18-N18 -> 0 | R18: =IF(SUM(J18:Q18)>0,"Tak","") ->  | S18: =IF(SUM(L18:O18)>0,"Tak","") ->  | T18: =IF(OR(J18<K18,P18<Q18,L18<N18,M18<O18),"błędny urząd","") ->  | U18: =IF(OR(J18<0,K18<0,P18<0,Q18<0),"ujemny plan","") -> 
A19: B/I/1/1/2 | B19: Miejskie Zakłady Autobusowe | C19: 2 podzadanie | D19: T | E19: 600 | F19: 60004 | J19: =SUM(J20) -> 0 | K19: 0 | L19: 0 | M19: 0 | N19: 0 | O19: 0 | P19: 0 | Q19: 0
A20: B/I/1/1/2 | B20: Miejskie Zakłady Autobusowe | C20: 2 podzadanie | D20: NIE | E20: 600 | F20: 60004 | J20: =SUM(J21:J26) -> 0 | K20: 0 | L20: 0 | M20: 0 | N20: 0 | O20: 0 | P20: 0 | Q20: 0
A21: B/I/1/1/2 | B21: Miejskie Zakłady Autobusowe | C21: 2 podzadanie | D21: NIE | E21: 600 | F21: 60004 | G21: 4300 | H21: Zakup usług pozostałych | I21: GUUW | P21: 0 | Q21: 0
A22: B/I/1/1/2 | B22: Miejskie Zakłady Autobusowe | C22: 2 podzadanie | D22: NIE | E22: 600 | F22: 60004 | G22: 4300 | H22: Zakup usług pozostałych | I22: GMMW | P22: 0 | Q22: 0
A23: B/I/1/1/2 | B23: Miejskie Zakłady Autobusowe | C23: 2 podzadanie | D23: NIE | E23: 600 | F23: 60004 | G23: 4300 | H23: Zakup usług pozostałych | I23: GPGM | P23: 0 | Q23: 0
A24: B/I/1/1/2 | B24: Miejskie Zakłady Autobusowe | C24: 2 podzadanie | D24: NIE | E24: 600 | F24: 60004 | G24: 4370 | H24: Zakup usług związanych z pomocą obywatelom Ukrainy | I24: GUUW | P24: 0 | Q24: 0
A25: B/I/1/1/2 | B25: Miejskie Zakłady Autobusowe | C25: 2 podzadanie | D25: NIE | E25: 600 | F25: 60004 | G25: 4530 | H25: Podatek od towarów i usług (VAT) | I25: GUUW | P25: 0 | Q25: 0
A26: B/I/1/1/2 | B26: Miejskie Zakłady Autobusowe | C26: 2 podzadanie | D26: NIE | E26: 600 | F26: 60004 | G26: 4530 | H26: Podatek od towarów i usług (VAT) | I26: GMMW | P26: 0 | Q26: 0
A27: B/I/1/1/3 | B27: Pozostali przewoźnicy autobusowi | C27: 3 podzadanie | D27: T | E27: 600 | F27: 60004 | J27: =SUM(J28) -> 0 | K27: 0 | L27: 0 | M27: 0 | N27: 0 | O27: 0 | P27: 0 | Q27: 0
A28: B/I/1/1/3 | B28: Pozostali przewoźnicy autobusowi | C28: 3 podzadanie | D28: NIE | E28: 600 | F28: 60004 | J28: =SUM(J29:J33) -> 0 | K28: 0 | L28: 0 | M28: 0 | N28: 0 | O28: 0 | P28: 0 | Q28: 0
A29: B/I/1/1/3 | B29: Pozostali przewoźnicy autobusowi | C29: 3 podzadanie | D29: NIE | E29: 600 | F29: 60004 | G29: 4300 | H29: Zakup usług pozostałych | I29: GUUW | P29: 0 | Q29: 0
A30: B/I/1/1/3 | B30: Pozostali przewoźnicy autobusowi | C30: 3 podzadanie | D30: NIE | E30: 600 | F30: 60004 | G30: 4300 | H30: Zakup usług pozostałych | I30: GMMW | P30: 0 | Q30: 0
A31: B/I/1/1/3 | B31: Pozostali przewoźnicy autobusowi | C31: 3 podzadanie | D31: NIE | E31: 600 | F31: 60004 | G31: 4370 | H31: Zakup usług związanych z pomocą obywatelom Ukrainy | I31: GUUW | P31: 0 | Q31: 0
A32: B/I/1/1/3 | B32: Pozostali przewoźnicy autobusowi | C32: 3 podzadanie | D32: NIE | E32: 600 | F32: 60004 | G32: 4530 | H32: Podatek od towarów i usług (VAT) | I32: GUUW | P32: 0 | Q32: 0
A33: B/I/1/1/3 | B33: Pozostali przewoźnicy autobusowi | C33: 3 podzadanie | D33: NIE | E33: 600 | F33: 60004 | G33: 4530 | H33: Podatek od towarów i usług (VAT) | I33: GMMW | P33: 0 | Q33: 0
A34: B/I/1/1/4 | B34: Szybka Kolej Miejska | C34: 4 podzadanie | D34: T | E34: 600 | F34: 60004 | J34: =SUM(J35) -> 0 | K34: 0 | L34: 0 | M34: 0 | N34: 0 | O34: 0 | P34: 0 | Q34: 0
A35: B/I/1/1/4 | B35: Szybka Kolej Miejska | C35: 4 podzadanie | D35: NIE | E35: 600 | F35: 60004 | J35: =SUM(J36:J37) -> 0 | K35: 0 | L35: 0 | M35: 0 | N35: 0 | O35: 0 | P35: 0 | Q35: 0
A36: B/I/1/1/4 | B36: Szybka Kolej Miejska | C36: 4 podzadanie | D36: NIE | E36: 600 | F36: 60004 | G36: 4300 | H36: Zakup usług pozostałych | I36: GMMW | P36: 0 | Q36: 0
A37: B/I/1/1/4 | B37: Szybka Kolej Miejska | C37: 4 podzadanie | D37: NIE | E37: 600 | F37: 60004 | G37: 4530 | H37: Podatek od towarów i usług (VAT) | I37: GMMW | P37: 0 | Q37: 0
A38: B/I/1/1/5 | B38: Tramwaje Warszawskie | C38: 5 podzadanie | D38: T | E38: 600 | F38: 60004 | J38: =SUM(J39) -> 0 | K38: 0 | L38: 0 | M38: 0 | N38: 0 | O38: 0 | P38: 0 | Q38: 0
A39: B/I/1/1/5 | B39: Tramwaje Warszawskie | C39: 5 podzadanie | D39: NIE | E39: 600 | F39: 60004 | J39: =SUM(J40:J41) -> 0 | K39: 0 | L39: 0 | M39: 0 | N39: 0 | O39: 0 | P39: 0 | Q39: 0
A40: B/I/1/1/5 | B40: Tramwaje Warszawskie | C40: 5 podzadanie | D40: NIE | E40: 600 | F40: 60004 | G40: 4300 | H40: Zakup usług pozostałych | I40: GMMW | P40: 0 | Q40: 0
A41: B/I/1/1/5 | B41: Tramwaje Warszawskie | C41: 5 podzadanie | D41: NIE | E41: 600 | F41: 60004 | G41: 4530 | H41: Podatek od towarów i usług (VAT) | I41: GMMW | P41: 0 | Q41: 0
A42: B/I/1/1/6 | B42: Pozostali przewoźnicy kolejowi | C42: 6 podzadanie | D42: T | E42: 600 | F42: 60004 | J42: =SUM(J43) -> 0 | K42: 0 | L42: 0 | M42: 0 | N42: 0 | O42: 0 | P42: 0 | Q42: 0
A43: B/I/1/1/6 | B43: Pozostali przewoźnicy kolejowi | C43: 6 podzadanie | D43: NIE | E43: 600 | F43: 60004 | J43: =SUM(J44:J45) -> 0 | K43: 0 | L43: 0 | M43: 0 | N43: 0 | O43: 0 | P43: 0 | Q43: 0
A44: B/I/1/1/6 | B44: Pozostali przewoźnicy kolejowi | C44: 6 podzadanie | D44: NIE | E44: 600 | F44: 60004 | G44: 4300 | H44: Zakup usług pozostałych | I44: GMMW | P44: 0 | Q44: 0
A45: B/I/1/1/6 | B45: Pozostali przewoźnicy kolejowi | C45: 6 podzadanie | D45: NIE | E45: 600 | F45: 60004 | G45: 4530 | H45: Podatek od towarów i usług (VAT) | I45: GMMW | P45: 0 | Q45: 0
A46: B/I/1/2 | B46: Zarządzanie komunikacją miejską | C46: 2 zadanie | D46: T | J46: =SUM(J143,J133,J47) -> 0 | K46: 0 | L46: 0 | M46: 0 | N46: 0 | O46: 0 | P46: 0 | Q46: 0
A47: B/I/1/2/1 | B47: Utrzymanie Zarządu Transportu Miejskiego, w tym obsługa inwestycji | C47: 1 podzadanie | D47: T | E47: 600 | F47: 60004 | J47: =SUM(J129,J48) -> 0 | K47: 0 | L47: 0 | M47: 0 | N47: 0 | O47: 0 | P47: 0 | Q47: 0
A48: B/I/1/2/1 | B48: Utrzymanie Zarządu Transportu Miejskiego, w tym obsługa inwestycji | C48: 1 podzadanie | D48: NIE | E48: 600 | F48: 60004 | J48: =SUM(J49:J94,J98:J120,J124:J128) -> 0 | K48: 0 | L48: 0 | M48: 0 | N48: 0 | O48: 0 | P48: 0 | Q48: 0
A49: B/I/1/2/1 | B49: Utrzymanie Zarządu Transportu Miejskiego, w tym obsługa inwestycji | C49: 1 podzadanie | D49: NIE | E49: 600 | F49: 60004 | G49: 3020 | H49: Wydatki osobowe niezaliczone do wynagrodzeń | I49: GMMW | P49: 0 | Q49: 0
A50: B/I/1/2/1 | B50: Utrzymanie Zarządu Transportu Miejskiego, w tym obsługa inwestycji | C50: 1 podzadanie | D50: NIE | E50: 600 | F50: 60004 | G50: 4010 | H50: Wynagrodzenia osobowe pracowników | I50: GMMW | P50: 0 | Q50: 0
A51: B/I/1/2/1 | B51: Utrzymanie Zarządu Transportu Miejskiego, w tym obsługa inwestycji | C51: 1 podzadanie | D51: NIE | E51: 600 | F51: 60004 | G51: 4017 | H51: Wynagrodzenia osobowe pracowników | I51: SFUE/23/6 | P51: 0 | Q51: 0
A52: B/I/1/2/1 | B52: Utrzymanie Zarządu Transportu Miejskiego, w tym obsługa inwestycji | C52: 1 podzadanie | D52: NIE | E52: 600 | F52: 60004 | G52: 4018 | H52: Wynagrodzenia osobowe pracowników | I52: SFUE/8/59 | P52: 0 | Q52: 0
A53: B/I/1/2/1 | B53: Utrzymanie Zarządu Transportu Miejskiego, w tym obsługa inwestycji | C53: 1 podzadanie | D53: NIE | E53: 600 | F53: 60004 | G53: 4018 | H53: Wynagrodzenia osobowe pracowników | I53: SFUE/8/60 | P53: 0 | Q53: 0
A54: B/I/1/2/1 | B54: Utrzymanie Zarządu Transportu Miejskiego, w tym obsługa inwestycji | C54: 1 podzadanie | D54: NIE | E54: 600 | F54: 60004 | G54: 4018 | H54: Wynagrodzenia osobowe pracowników | I54: SFUE/8/61 | P54: 0 | Q54: 0
A55: B/I/1/2/1 | B55: Utrzymanie Zarządu Transportu Miejskiego, w tym obsługa inwestycji | C55: 1 podzadanie | D55: NIE | E55: 600 | F55: 60004 | G55: 4019 | H55: Wynagrodzenia osobowe pracowników | I55: SFUE/23/6 | P55: 0 | Q55: 0
A56: B/I/1/2/1 | B56: Utrzymanie Zarządu Transportu Miejskiego, w tym obsługa inwestycji | C56: 1 podzadanie | D56: NIE | E56: 600 | F56: 60004 | G56: 4019 | H56: Wynagrodzenia osobowe pracowników | I56: SFUE/8/60 | P56: 0 | Q56: 0
A57: B/I/1/2/1 | B57: Utrzymanie Zarządu Transportu Miejskiego, w tym obsługa inwestycji | C57: 1 podzadanie | D57: NIE | E57: 600 | F57: 60004 | G57: 4019 | H57: Wynagrodzenia osobowe pracowników | I57: SFUE/8/61 | P57: 0 | Q57: 0
A58: B/I/1/2/1 | B58: Utrzymanie Zarządu Transportu Miejskiego, w tym obsługa inwestycji | C58: 1 podzadanie | D58: NIE | E58: 600 | F58: 60004 | G58: 4040 | H58: Dodatkowe wynagrodzenie roczne | I58: GMMW | P58: 0 | Q58: 0
A59: B/I/1/2/1 | B59: Utrzymanie Zarządu Transportu Miejskiego, w tym obsługa inwestycji | C59: 1 podzadanie | D59: NIE | E59: 600 | F59: 60004 | G59: 4047 | H59: Dodatkowe wynagrodzenie roczne | I59: SFUE/23/6 | P59: 0 | Q59: 0
A60: B/I/1/2/1 | B60: Utrzymanie Zarządu Transportu Miejskiego, w tym obsługa inwestycji | C60: 1 podzadanie | D60: NIE | E60: 600 | F60: 60004 | G60: 4048 | H60: Dodatkowe wynagrodzenie roczne | I60: SFUE/8/59 | P60: 0 | Q60: 0
A61: B/I/1/2/1 | B61: Utrzymanie Zarządu Transportu Miejskiego, w tym obsługa inwestycji | C61: 1 podzadanie | D61: NIE | E61: 600 | F61: 60004 | G61: 4049 | H61: Dodatkowe wynagrodzenie roczne | I61: SFUE/23/6 | P61: 0 | Q61: 0
A62: B/I/1/2/1 | B62: Utrzymanie Zarządu Transportu Miejskiego, w tym obsługa inwestycji | C62: 1 podzadanie | D62: NIE | E62: 600 | F62: 60004 | G62: 4110 | H62: Składki na ubezpieczenia społeczne | I62: GMMW | P62: 0 | Q62: 0
A63: B/I/1/2/1 | B63: Utrzymanie Zarządu Transportu Miejskiego, w tym obsługa inwestycji | C63: 1 podzadanie | D63: NIE | E63: 600 | F63: 60004 | G63: 4117 | H63: Składki na ubezpieczenia społeczne | I63: SFUE/23/6 | P63: 0 | Q63: 0
A64: B/I/1/2/1 | B64: Utrzymanie Zarządu Transportu Miejskiego, w tym obsługa inwestycji | C64: 1 podzadanie | D64: NIE | E64: 600 | F64: 60004 | G64: 4118 | H64: Składki na ubezpieczenia społeczne | I64: SFUE/8/59 | P64: 0 | Q64: 0
A65: B/I/1/2/1 | B65: Utrzymanie Zarządu Transportu Miejskiego, w tym obsługa inwestycji | C65: 1 podzadanie | D65: NIE | E65: 600 | F65: 60004 | G65: 4118 | H65: Składki na ubezpieczenia społeczne | I65: SFUE/8/60 | P65: 0 | Q65: 0
A66: B/I/1/2/1 | B66: Utrzymanie Zarządu Transportu Miejskiego, w tym obsługa inwestycji | C66: 1 podzadanie | D66: NIE | E66: 600 | F66: 60004 | G66: 4118 | H66: Składki na ubezpieczenia społeczne | I66: SFUE/8/61 | P66: 0 | Q66: 0
A67: B/I/1/2/1 | B67: Utrzymanie Zarządu Transportu Miejskiego, w tym obsługa inwestycji | C67: 1 podzadanie | D67: NIE | E67: 600 | F67: 60004 | G67: 4119 | H67: Składki na ubezpieczenia społeczne | I67: SFUE/23/6 | P67: 0 | Q67: 0
A68: B/I/1/2/1 | B68: Utrzymanie Zarządu Transportu Miejskiego, w tym obsługa inwestycji | C68: 1 podzadanie | D68: NIE | E68: 600 | F68: 60004 | G68: 4119 | H68: Składki na ubezpieczenia społeczne | I68: SFUE/8/60 | P68: 0 | Q68: 0
A69: B/I/1/2/1 | B69: Utrzymanie Zarządu Transportu Miejskiego, w tym obsługa inwestycji | C69: 1 podzadanie | D69: NIE | E69: 600 | F69: 60004 | G69: 4119 | H69: Składki na ubezpieczenia społeczne | I69: SFUE/8/61 | P69: 0 | Q69: 0
A70: B/I/1/2/1 | B70: Utrzymanie Zarządu Transportu Miejskiego, w tym obsługa inwestycji | C70: 1 podzadanie | D70: NIE | E70: 600 | F70: 60004 | G70: 4120 | H70: Składki na Fundusz Pracy oraz Fundusz Solidarnościowy | I70: GMMW | P70: 0 | Q70: 0
A71: B/I/1/2/1 | B71: Utrzymanie Zarządu Transportu Miejskiego, w tym obsługa inwestycji | C71: 1 podzadanie | D71: NIE | E71: 600 | F71: 60004 | G71: 4127 | H71: Składki na Fundusz Pracy oraz Fundusz Solidarnościowy | I71: SFUE/23/6 | P71: 0 | Q71: 0
A72: B/I/1/2/1 | B72: Utrzymanie Zarządu Transportu Miejskiego, w tym obsługa inwestycji | C72: 1 podzadanie | D72: NIE | E72: 600 | F72: 60004 | G72: 4128 | H72: Składki na Fundusz Pracy oraz Fundusz Solidarnościowy | I72: SFUE/8/59 | P72: 0 | Q72: 0
A73: B/I/1/2/1 | B73: Utrzymanie Zarządu Transportu Miejskiego, w tym obsługa inwestycji | C73: 1 podzadanie | D73: NIE | E73: 600 | F73: 60004 | G73: 4128 | H73: Składki na Fundusz Pracy oraz Fundusz Solidarnościowy | I73: SFUE/8/60 | P73: 0 | Q73: 0
A74: B/I/1/2/1 | B74: Utrzymanie Zarządu Transportu Miejskiego, w tym obsługa inwestycji | C74: 1 podzadanie | D74: NIE | E74: 600 | F74: 60004 | G74: 4128 | H74: Składki na Fundusz Pracy oraz Fundusz Solidarnościowy | I74: SFUE/8/61 | P74: 0 | Q74: 0
A75: B/I/1/2/1 | B75: Utrzymanie Zarządu Transportu Miejskiego, w tym obsługa inwestycji | C75: 1 podzadanie | D75: NIE | E75: 600 | F75: 60004 | G75: 4129 | H75: Składki na Fundusz Pracy oraz Fundusz Solidarnościowy | I75: SFUE/23/6 | P75: 0 | Q75: 0
A76: B/I/1/2/1 | B76: Utrzymanie Zarządu Transportu Miejskiego, w tym obsługa inwestycji | C76: 1 podzadanie | D76: NIE | E76: 600 | F76: 60004 | G76: 4129 | H76: Składki na Fundusz Pracy oraz Fundusz Solidarnościowy | I76: SFUE/8/60 | P76: 0 | Q76: 0
A77: B/I/1/2/1 | B77: Utrzymanie Zarządu Transportu Miejskiego, w tym obsługa inwestycji | C77: 1 podzadanie | D77: NIE | E77: 600 | F77: 60004 | G77: 4129 | H77: Składki na Fundusz Pracy oraz Fundusz Solidarnościowy | I77: SFUE/8/61 | P77: 0 | Q77: 0
A78: B/I/1/2/1 | B78: Utrzymanie Zarządu Transportu Miejskiego, w tym obsługa inwestycji | C78: 1 podzadanie | D78: NIE | E78: 600 | F78: 60004 | G78: 4140 | H78: Wpłaty na Państwowy Fundusz Rehabilitacji Osób Niepełnosprawnych | I78: GMMW | P78: 0 | Q78: 0
A79: B/I/1/2/1 | B79: Utrzymanie Zarządu Transportu Miejskiego, w tym obsługa inwestycji | C79: 1 podzadanie | D79: NIE | E79: 600 | F79: 60004 | G79: 4170 | H79: Wynagrodzenia bezosobowe | I79: GMMW | P79: 0 | Q79: 0
A80: B/I/1/2/1 | B80: Utrzymanie Zarządu Transportu Miejskiego, w tym obsługa inwestycji | C80: 1 podzadanie | D80: NIE | E80: 600 | F80: 60004 | G80: 4190 | H80: Nagrody konkursowe | I80: GMMW | P80: 0 | Q80: 0
A81: B/I/1/2/1 | B81: Utrzymanie Zarządu Transportu Miejskiego, w tym obsługa inwestycji | C81: 1 podzadanie | D81: NIE | E81: 600 | F81: 60004 | G81: 4210 | H81: Zakup materiałów i wyposażenia | I81: GMMW/C | P81: 0 | Q81: 0
A82: B/I/1/2/1 | B82: Utrzymanie Zarządu Transportu Miejskiego, w tym obsługa inwestycji | C82: 1 podzadanie | D82: NIE | E82: 600 | F82: 60004 | G82: 4210 | H82: Zakup materiałów i wyposażenia | I82: GMMW | P82: =J82+M82-L82 -> 0 | Q82: =K82+O82-N82 -> 0 | R82: =IF(SUM(J82:Q82)>0,"Tak","") ->  | S82: =IF(SUM(L82:O82)>0,"Tak","") ->  | T82: =IF(OR(J82<K82,P82<Q82,L82<N82,M82<O82),"błędny urząd","") ->  | U82: =IF(OR(J82<0,K82<0,P82<0,Q82<0),"ujemny plan","") -> 
A83: B/I/1/2/1 | B83: Utrzymanie Zarządu Transportu Miejskiego, w tym obsługa inwestycji | C83: 1 podzadanie | D83: NIE | E83: 600 | F83: 60004 | G83: 4260 | H83: Zakup energii | I83: GMMW | P83: 0 | Q83: 0
A84: B/I/1/2/1 | B84: Utrzymanie Zarządu Transportu Miejskiego, w tym obsługa inwestycji | C84: 1 podzadanie | D84: NIE | E84: 600 | F84: 60004 | G84: 4270 | H84: Zakup usług remontowych | I84: GMMW | P84: 0 | Q84: 0
A85: B/I/1/2/1 | B85: Utrzymanie Zarządu Transportu Miejskiego, w tym obsługa inwestycji | C85: 1 podzadanie | D85: NIE | E85: 600 | F85: 60004 | G85: 4280 | H85: Zakup usług zdrowotnych | I85: GMMW/C | P85: 0 | Q85: 0
A86: B/I/1/2/1 | B86: Utrzymanie Zarządu Transportu Miejskiego, w tym obsługa inwestycji | C86: 1 podzadanie | D86: NIE | E86: 600 | F86: 60004 | G86: 4280 | H86: Zakup usług zdrowotnych | I86: GMMW | P86: 0 | Q86: 0
A87: B/I/1/2/1 | B87: Utrzymanie Zarządu Transportu Miejskiego, w tym obsługa inwestycji | C87: 1 podzadanie | D87: NIE | E87: 600 | F87: 60004 | G87: 4300 | H87: Zakup usług pozostałych | I87: GMMW | P87: 0 | Q87: 0
A88: B/I/1/2/1 | B88: Utrzymanie Zarządu Transportu Miejskiego, w tym obsługa inwestycji | C88: 1 podzadanie | D88: NIE | E88: 600 | F88: 60004 | G88: 4307 | H88: Zakup usług pozostałych | I88: SFUE/29/1 | P88: 0 | Q88: 0
A89: B/I/1/2/1 | B89: Utrzymanie Zarządu Transportu Miejskiego, w tym obsługa inwestycji | C89: 1 podzadanie | D89: NIE | E89: 600 | F89: 60004 | G89: 4309 | H89: Zakup usług pozostałych | I89: SFUE/29/1 | P89: 0 | Q89: 0
A90: B/I/1/2/1 | B90: Utrzymanie Zarządu Transportu Miejskiego, w tym obsługa inwestycji | C90: 1 podzadanie | D90: NIE | E90: 600 | F90: 60004 | G90: 4360 | H90: Opłaty z tytułu zakupu usług telekomunikacyjnych | I90: GMMW | P90: 0 | Q90: 0
A91: B/I/1/2/1 | B91: Utrzymanie Zarządu Transportu Miejskiego, w tym obsługa inwestycji | C91: 1 podzadanie | D91: NIE | E91: 600 | F91: 60004 | G91: 4380 | H91: Zakup usług obejmujących tłumaczenia | I91: GMMW | P91: 0 | Q91: 0
A92: B/I/1/2/1 | B92: Utrzymanie Zarządu Transportu Miejskiego, w tym obsługa inwestycji | C92: 1 podzadanie | D92: NIE | E92: 600 | F92: 60004 | G92: 4390 | H92: Zakup usług obejmujących wykonanie ekspertyz, analiz i opinii | I92: GMMW | P92: 0 | Q92: 0
A93: B/I/1/2/1 | B93: Utrzymanie Zarządu Transportu Miejskiego, w tym obsługa inwestycji | C93: 1 podzadanie | D93: NIE | E93: 600 | F93: 60004 | G93: 4397 | H93: Zakup usług obejmujących wykonanie ekspertyz, analiz i opinii | I93: SFUE/29/1 | P93: 0 | Q93: 0
A94: B/I/1/2/1 | B94: Utrzymanie Zarządu Transportu Miejskiego, w tym obsługa inwestycji | C94: 1 podzadanie | D94: NIE | E94: 600 | F94: 60004 | G94: 4399 | H94: Zakup usług obejmujących wykonanie ekspertyz, analiz i opinii | J94: =SUM(J95:J97) -> 0 | K94: 0 | L94: 0 | M94: 0 | N94: 0 | O94: 0 | P94: 0 | Q94: 0
A95: B/I/1/2/1 | B95: Utrzymanie Zarządu Transportu Miejskiego, w tym obsługa inwestycji | C95: 1 podzadanie | D95: NIE | E95: 600 | F95: 60004 | G95: 4399 | H95: +000 | I95: SFUE/29/1 | P95: 0 | Q95: 0
A96: B/I/1/2/1 | B96: Utrzymanie Zarządu Transportu Miejskiego, w tym obsługa inwestycji | C96: 1 podzadanie | D96: NIE | E96: 600 | F96: 60004 | G96: 4399 | H96: +001 | I96: SFUE/29/1 | P96: 0 | Q96: 0
A97: B/I/1/2/1 | B97: Utrzymanie Zarządu Transportu Miejskiego, w tym obsługa inwestycji | C97: 1 podzadanie | D97: NIE | E97: 600 | F97: 60004 | G97: 4399 | H97: +002 | I97: SFUE/29/1 | P97: 0 | Q97: 0
A98: B/I/1/2/1 | B98: Utrzymanie Zarządu Transportu Miejskiego, w tym obsługa inwestycji | C98: 1 podzadanie | D98: NIE | E98: 600 | F98: 60004 | G98: 4400 | H98: Opłaty za administrowanie i czynsze za budynki, lokale i pomieszczenia garażowe | I98: GMMW | P98: 0 | Q98: 0
A99: B/I/1/2/1 | B99: Utrzymanie Zarządu Transportu Miejskiego, w tym obsługa inwestycji | C99: 1 podzadanie | D99: NIE | E99: 600 | F99: 60004 | G99: 4410 | H99: Podróże służbowe krajowe | I99: GMMW | P99: 0 | Q99: 0
A100: B/I/1/2/1 | B100: Utrzymanie Zarządu Transportu Miejskiego, w tym obsługa inwestycji | C100: 1 podzadanie | D100: NIE | E100: 600 | F100: 60004 | G100: 4420 | H100: Podróże służbowe zagraniczne | I100: GMMW | P100: 0 | Q100: 0
A101: B/I/1/2/1 | B101: Utrzymanie Zarządu Transportu Miejskiego, w tym obsługa inwestycji | C101: 1 podzadanie | D101: NIE | E101: 600 | F101: 60004 | G101: 4428 | H101: Podróże służbowe zagraniczne | I101: SFUE/8/59 | P101: 0 | Q101: 0
A102: B/I/1/2/1 | B102: Utrzymanie Zarządu Transportu Miejskiego, w tym obsługa inwestycji | C102: 1 podzadanie | D102: NIE | E102: 600 | F102: 60004 | G102: 4428 | H102: Podróże służbowe zagraniczne | I102: SFUE/8/60 | P102: 0 | Q102: 0
A103: B/I/1/2/1 | B103: Utrzymanie Zarządu Transportu Miejskiego, w tym obsługa inwestycji | C103: 1 podzadanie | D103: NIE | E103: 600 | F103: 60004 | G103: 4428 | H103: Podróże służbowe zagraniczne | I103: SFUE/8/61 | P103: 0 | Q103: 0
A104: B/I/1/2/1 | B104: Utrzymanie Zarządu Transportu Miejskiego, w tym obsługa inwestycji | C104: 1 podzadanie | D104: NIE | E104: 600 | F104: 60004 | G104: 4429 | H104: Podróże służbowe zagraniczne | I104: SFUE/8/60 | P104: 0 | Q104: 0
A105: B/I/1/2/1 | B105: Utrzymanie Zarządu Transportu Miejskiego, w tym obsługa inwestycji | C105: 1 podzadanie | D105: NIE | E105: 600 | F105: 60004 | G105: 4429 | H105: Podróże służbowe zagraniczne | I105: SFUE/8/61 | P105: 0 | Q105: 0
A106: B/I/1/2/1 | B106: Utrzymanie Zarządu Transportu Miejskiego, w tym obsługa inwestycji | C106: 1 podzadanie | D106: NIE | E106: 600 | F106: 60004 | G106: 4430 | H106: Różne opłaty i składki | I106: GMMW | P106: 0 | Q106: 0
A107: B/I/1/2/1 | B107: Utrzymanie Zarządu Transportu Miejskiego, w tym obsługa inwestycji | C107: 1 podzadanie | D107: NIE | E107: 600 | F107: 60004 | G107: 4440 | H107: Odpisy na zakładowy fundusz świadczeń socjalnych | I107: GMMW | P107: 0 | Q107: 0
A108: B/I/1/2/1 | B108: Utrzymanie Zarządu Transportu Miejskiego, w tym obsługa inwestycji | C108: 1 podzadanie | D108: NIE | E108: 600 | F108: 60004 | G108: 4480 | H108: Podatek od nieruchomości | I108: GMMW | P108: 0 | Q108: 0
A109: B/I/1/2/1 | B109: Utrzymanie Zarządu Transportu Miejskiego, w tym obsługa inwestycji | C109: 1 podzadanie | D109: NIE | E109: 600 | F109: 60004 | G109: 4510 | H109: Opłaty na rzecz budżetu państwa | I109: GMMW | P109: 0 | Q109: 0
A110: B/I/1/2/1 | B110: Utrzymanie Zarządu Transportu Miejskiego, w tym obsługa inwestycji | C110: 1 podzadanie | D110: NIE | E110: 600 | F110: 60004 | G110: 4530 | H110: Podatek od towarów i usług (VAT) | I110: GMMW/C | P110: 0 | Q110: 0
A111: B/I/1/2/1 | B111: Utrzymanie Zarządu Transportu Miejskiego, w tym obsługa inwestycji | C111: 1 podzadanie | D111: NIE | E111: 600 | F111: 60004 | G111: 4530 | H111: Podatek od towarów i usług (VAT) | I111: GMMW | P111: 0 | Q111: 0
A112: B/I/1/2/1 | B112: Utrzymanie Zarządu Transportu Miejskiego, w tym obsługa inwestycji | C112: 1 podzadanie | D112: NIE | E112: 600 | F112: 60004 | G112: 4530 | H112: Podatek od towarów i usług (VAT) | I112: SFUE/29/1 | P112: 0 | Q112: 0
A113: B/I/1/2/1 | B113: Utrzymanie Zarządu Transportu Miejskiego, w tym obsługa inwestycji | C113: 1 podzadanie | D113: NIE | E113: 600 | F113: 60004 | G113: 4540 | H113: Składki do organizacji międzynarodowych | I113: GMMW | P113: 0 | Q113: 0
A114: B/I/1/2/1 | B114: Utrzymanie Zarządu Transportu Miejskiego, w tym obsługa inwestycji | C114: 1 podzadanie | D114: NIE | E114: 600 | F114: 60004 | G114: 4590 | H114: Kary i odszkodowania wypłacane na rzecz osób fizycznych | I114: GMMW | P114: 0 | Q114: 0
A115: B/I/1/2/1 | B115: Utrzymanie Zarządu Transportu Miejskiego, w tym obsługa inwestycji | C115: 1 podzadanie | D115: NIE | E115: 600 | F115: 60004 | G115: 4600 | H115: Kary, odszkodowania i grzywny wypłacane na rzecz osób prawnych i innych jednostek organizacyjnych | I115: GMMW | P115: 0 | Q115: 0
A116: B/I/1/2/1 | B116: Utrzymanie Zarządu Transportu Miejskiego, w tym obsługa inwestycji | C116: 1 podzadanie | D116: NIE | E116: 600 | F116: 60004 | G116: 4610 | H116: Koszty postępowania sądowego i prokuratorskiego | I116: GMMW | P116: 0 | Q116: 0
A117: B/I/1/2/1 | B117: Utrzymanie Zarządu Transportu Miejskiego, w tym obsługa inwestycji | C117: 1 podzadanie | D117: NIE | E117: 600 | F117: 60004 | G117: 4700 | H117: Szkolenia pracowników niebędących członkami korpusu służby cywilnej | I117: GMMW/C | P117: 0 | Q117: 0
A118: B/I/1/2/1 | B118: Utrzymanie Zarządu Transportu Miejskiego, w tym obsługa inwestycji | C118: 1 podzadanie | D118: NIE | E118: 600 | F118: 60004 | G118: 4700 | H118: Szkolenia pracowników niebędących członkami korpusu służby cywilnej | I118: GMMW | P118: 0 | Q118: 0
A119: B/I/1/2/1 | B119: Utrzymanie Zarządu Transportu Miejskiego, w tym obsługa inwestycji | C119: 1 podzadanie | D119: NIE | E119: 600 | F119: 60004 | G119: 4707 | H119: Szkolenia pracowników niebędących członkami korpusu służby cywilnej | I119: SFUE/29/1 | P119: 0 | Q119: 0
A120: B/I/1/2/1 | B120: Utrzymanie Zarządu Transportu Miejskiego, w tym obsługa inwestycji | C120: 1 podzadanie | D120: NIE | E120: 600 | F120: 60004 | G120: 4709 | H120: Szkolenia pracowników niebędących członkami korpusu służby cywilnej | J120: =SUM(J121:J123) -> 0 | K120: 0 | L120: 0 | M120: 0 | N120: 0 | O120: 0 | P120: 0 | Q120: 0
A121: B/I/1/2/1 | B121: Utrzymanie Zarządu Transportu Miejskiego, w tym obsługa inwestycji | C121: 1 podzadanie | D121: NIE | E121: 600 | F121: 60004 | G121: 4709 | H121: +000 | I121: SFUE/29/1 | P121: 0 | Q121: 0
A122: B/I/1/2/1 | B122: Utrzymanie Zarządu Transportu Miejskiego, w tym obsługa inwestycji | C122: 1 podzadanie | D122: NIE | E122: 600 | F122: 60004 | G122: 4709 | H122: +001 | I122: SFUE/29/1 | P122: 0 | Q122: 0
A123: B/I/1/2/1 | B123: Utrzymanie Zarządu Transportu Miejskiego, w tym obsługa inwestycji | C123: 1 podzadanie | D123: NIE | E123: 600 | F123: 60004 | G123: 4709 | H123: +002 | I123: SFUE/29/1 | P123: 0 | Q123: 0
A124: B/I/1/2/1 | B124: Utrzymanie Zarządu Transportu Miejskiego, w tym obsługa inwestycji | C124: 1 podzadanie | D124: NIE | E124: 600 | F124: 60004 | G124: 4710 | H124: Wpłaty na PPK finansowane przez podmiot zatrudniający | I124: GMMW | P124: 0 | Q124: 0
A125: B/I/1/2/1 | B125: Utrzymanie Zarządu Transportu Miejskiego, w tym obsługa inwestycji | C125: 1 podzadanie | D125: NIE | E125: 600 | F125: 60004 | G125: 4718 | H125: Wpłaty na PPK finansowane przez podmiot zatrudniający | I125: SFUE/8/59 | P125: 0 | Q125: 0
A126: B/I/1/2/1 | B126: Utrzymanie Zarządu Transportu Miejskiego, w tym obsługa inwestycji | C126: 1 podzadanie | D126: NIE | E126: 600 | F126: 60004 | G126: 4718 | H126: Wpłaty na PPK finansowane przez podmiot zatrudniający | I126: SFUE/8/61 | P126: 0 | Q126: 0
A127: B/I/1/2/1 | B127: Utrzymanie Zarządu Transportu Miejskiego, w tym obsługa inwestycji | C127: 1 podzadanie | D127: NIE | E127: 600 | F127: 60004 | G127: 4719 | H127: Wpłaty na PPK finansowane przez podmiot zatrudniający | I127: SFUE/8/61 | P127: 0 | Q127: 0
A128: B/I/1/2/1 | B128: Utrzymanie Zarządu Transportu Miejskiego, w tym obsługa inwestycji | C128: 1 podzadanie | D128: NIE | E128: 600 | F128: 60004 | G128: 4950 | H128: Różnice kursowe | I128: GMMW | P128: 0 | Q128: 0
A129: B/I/1/2/1 | B129: Utrzymanie Zarządu Transportu Miejskiego, w tym obsługa inwestycji | C129: 1 podzadanie | D129: NIE | E129: 754 | F129: 75416 | J129: =SUM(J130:J132) -> 0 | K129: 0 | L129: 0 | M129: 0 | N129: 0 | O129: 0 | P129: 0 | Q129: 0
A130: B/I/1/2/1 | B130: Utrzymanie Zarządu Transportu Miejskiego, w tym obsługa inwestycji | C130: 1 podzadanie | D130: NIE | E130: 754 | F130: 75416 | G130: 4260 | H130: Zakup energii | I130: GMMW | P130: 0 | Q130: 0
A131: B/I/1/2/1 | B131: Utrzymanie Zarządu Transportu Miejskiego, w tym obsługa inwestycji | C131: 1 podzadanie | D131: NIE | E131: 754 | F131: 75416 | G131: 4300 | H131: Zakup usług pozostałych | I131: GMMW | P131: 0 | Q131: 0
A132: B/I/1/2/1 | B132: Utrzymanie Zarządu Transportu Miejskiego, w tym obsługa inwestycji | C132: 1 podzadanie | D132: NIE | E132: 754 | F132: 75416 | G132: 4400 | H132: Opłaty za administrowanie i czynsze za budynki, lokale i pomieszczenia garażowe | I132: GMMW | P132: 0 | Q132: 0
A133: B/I/1/2/2 | B133: Utrzymanie i obsługa systemu biletowego | C133: 2 podzadanie | D133: T | E133: 600 | F133: 60004 | J133: =SUM(J134) -> 0 | K133: 0 | L133: 0 | M133: 0 | N133: 0 | O133: 0 | P133: 0 | Q133: 0
A134: B/I/1/2/2 | B134: Utrzymanie i obsługa systemu biletowego | C134: 2 podzadanie | D134: NIE | E134: 600 | F134: 60004 | J134: =SUM(J135:J142) -> 0 | K134: 0 | L134: 0 | M134: 0 | N134: 0 | O134: 0 | P134: 0 | Q134: 0
A135: B/I/1/2/2 | B135: Utrzymanie i obsługa systemu biletowego | C135: 2 podzadanie | D135: NIE | E135: 600 | F135: 60004 | G135: 4190 | H135: Nagrody konkursowe | I135: GMMW | P135: 0 | Q135: 0
A136: B/I/1/2/2 | B136: Utrzymanie i obsługa systemu biletowego | C136: 2 podzadanie | D136: NIE | E136: 600 | F136: 60004 | G136: 4210 | H136: Zakup materiałów i wyposażenia | I136: GMMW | P136: 0 | Q136: 0
A137: B/I/1/2/2 | B137: Utrzymanie i obsługa systemu biletowego | C137: 2 podzadanie | D137: NIE | E137: 600 | F137: 60004 | G137: 4260 | H137: Zakup energii | I137: GMMW | P137: 0 | Q137: 0
A138: B/I/1/2/2 | B138: Utrzymanie i obsługa systemu biletowego | C138: 2 podzadanie | D138: NIE | E138: 600 | F138: 60004 | G138: 4270 | H138: Zakup usług remontowych | I138: GMMW | P138: 0 | Q138: 0
A139: B/I/1/2/2 | B139: Utrzymanie i obsługa systemu biletowego | C139: 2 podzadanie | D139: NIE | E139: 600 | F139: 60004 | G139: 4300 | H139: Zakup usług pozostałych | I139: GMMW | P139: 0 | Q139: 0
A140: B/I/1/2/2 | B140: Utrzymanie i obsługa systemu biletowego | C140: 2 podzadanie | D140: NIE | E140: 600 | F140: 60004 | G140: 4400 | H140: Opłaty za administrowanie i czynsze za budynki, lokale i pomieszczenia garażowe | I140: GMMW | P140: 0 | Q140: 0
A141: B/I/1/2/2 | B141: Utrzymanie i obsługa systemu biletowego | C141: 2 podzadanie | D141: NIE | E141: 600 | F141: 60004 | G141: 4530 | H141: Podatek od towarów i usług (VAT) | I141: GMMW | P141: 0 | Q141: 0
A142: B/I/1/2/2 | B142: Utrzymanie i obsługa systemu biletowego | C142: 2 podzadanie | D142: NIE | E142: 600 | F142: 60004 | G142: 4610 | H142: Koszty postępowania sądowego i prokuratorskiego | I142: GMMW | P142: 0 | Q142: 0
A143: B/I/1/2/3 | B143: Organizacja komunikacji, marketing, nadzór i kontrola ruchu | C143: 3 podzadanie | D143: T | J143: =SUM(J185,J180,J144) -> 0 | K143: 0 | L143: 0 | M143: 0 | N143: 0 | O143: 0 | P143: 0 | Q143: 0
A144: B/I/1/2/3 | B144: Organizacja komunikacji, marketing, nadzór i kontrola ruchu | C144: 3 podzadanie | D144: NIE | E144: 600 | F144: 60004 | J144: =SUM(J145:J169,J173:J176) -> 0 | K144: 0 | L144: 0 | M144: 0 | N144: 0 | O144: 0 | P144: 0 | Q144: 0
A145: B/I/1/2/3 | B145: Organizacja komunikacji, marketing, nadzór i kontrola ruchu | C145: 3 podzadanie | D145: NIE | E145: 600 | F145: 60004 | G145: 3020 | H145: Wydatki osobowe niezaliczone do wynagrodzeń | I145: GMMW | P145: 0 | Q145: 0
A146: B/I/1/2/3 | B146: Organizacja komunikacji, marketing, nadzór i kontrola ruchu | C146: 3 podzadanie | D146: NIE | E146: 600 | F146: 60004 | G146: 4210 | H146: Zakup materiałów i wyposażenia | I146: GMMW | P146: =J146+M146-L146 -> 0 | Q146: =K146+O146-N146 -> 0 | R146: =IF(SUM(J146:Q146)>0,"Tak","") ->  | S146: =IF(SUM(L146:O146)>0,"Tak","") ->  | T146: =IF(OR(J146<K146,P146<Q146,L146<N146,M146<O146),"błędny urząd","") ->  | U146: =IF(OR(J146<0,K146<0,P146<0,Q146<0),"ujemny plan","") -> 
A147: B/I/1/2/3 | B147: Organizacja komunikacji, marketing, nadzór i kontrola ruchu | C147: 3 podzadanie | D147: NIE | E147: 600 | F147: 60004 | G147: 4218 | H147: Zakup materiałów i wyposażenia | I147: SFUE/8/59 | P147: 0 | Q147: 0
A148: B/I/1/2/3 | B148: Organizacja komunikacji, marketing, nadzór i kontrola ruchu | C148: 3 podzadanie | D148: NIE | E148: 600 | F148: 60004 | G148: 4218 | H148: Zakup materiałów i wyposażenia | I148: SFUE/8/60 | P148: 0 | Q148: 0
A149: B/I/1/2/3 | B149: Organizacja komunikacji, marketing, nadzór i kontrola ruchu | C149: 3 podzadanie | D149: NIE | E149: 600 | F149: 60004 | G149: 4218 | H149: Zakup materiałów i wyposażenia | I149: SFUE/8/61 | P149: 0 | Q149: 0
A150: B/I/1/2/3 | B150: Organizacja komunikacji, marketing, nadzór i kontrola ruchu | C150: 3 podzadanie | D150: NIE | E150: 600 | F150: 60004 | G150: 4219 | H150: Zakup materiałów i wyposażenia | I150: SFUE/8/61 | P150: 0 | Q150: 0
A151: B/I/1/2/3 | B151: Organizacja komunikacji, marketing, nadzór i kontrola ruchu | C151: 3 podzadanie | D151: NIE | E151: 600 | F151: 60004 | G151: 4270 | H151: Zakup usług remontowych | I151: GMMW | P151: 0 | Q151: 0
A152: B/I/1/2/3 | B152: Organizacja komunikacji, marketing, nadzór i kontrola ruchu | C152: 3 podzadanie | D152: NIE | E152: 600 | F152: 60004 | G152: 4300 | H152: Zakup usług pozostałych | I152: GMMW | P152: 0 | Q152: 0
A153: B/I/1/2/3 | B153: Organizacja komunikacji, marketing, nadzór i kontrola ruchu | C153: 3 podzadanie | D153: NIE | E153: 600 | F153: 60004 | G153: 4307 | H153: Zakup usług pozostałych | I153: SFUE/23/6 | P153: 0 | Q153: 0
A154: B/I/1/2/3 | B154: Organizacja komunikacji, marketing, nadzór i kontrola ruchu | C154: 3 podzadanie | D154: NIE | E154: 600 | F154: 60004 | G154: 4308 | H154: Zakup usług pozostałych | I154: SFUE/8/59 | P154: 0 | Q154: 0
A155: B/I/1/2/3 | B155: Organizacja komunikacji, marketing, nadzór i kontrola ruchu | C155: 3 podzadanie | D155: NIE | E155: 600 | F155: 60004 | G155: 4308 | H155: Zakup usług pozostałych | I155: SFUE/8/60 | P155: 0 | Q155: 0
A156: B/I/1/2/3 | B156: Organizacja komunikacji, marketing, nadzór i kontrola ruchu | C156: 3 podzadanie | D156: NIE | E156: 600 | F156: 60004 | G156: 4308 | H156: Zakup usług pozostałych | I156: SFUE/8/61 | P156: 0 | Q156: 0
A157: B/I/1/2/3 | B157: Organizacja komunikacji, marketing, nadzór i kontrola ruchu | C157: 3 podzadanie | D157: NIE | E157: 600 | F157: 60004 | G157: 4309 | H157: Zakup usług pozostałych | I157: SFUE/23/6 | P157: 0 | Q157: 0
A158: B/I/1/2/3 | B158: Organizacja komunikacji, marketing, nadzór i kontrola ruchu | C158: 3 podzadanie | D158: NIE | E158: 600 | F158: 60004 | G158: 4309 | H158: Zakup usług pozostałych | I158: SFUE/8/61 | P158: 0 | Q158: 0
A159: B/I/1/2/3 | B159: Organizacja komunikacji, marketing, nadzór i kontrola ruchu | C159: 3 podzadanie | D159: NIE | E159: 600 | F159: 60004 | G159: 4388 | H159: Zakup usług obejmujących tłumaczenia | I159: SFUE/8/59 | P159: 0 | Q159: 0
A160: B/I/1/2/3 | B160: Organizacja komunikacji, marketing, nadzór i kontrola ruchu | C160: 3 podzadanie | D160: NIE | E160: 600 | F160: 60004 | G160: 4388 | H160: Zakup usług obejmujących tłumaczenia | I160: SFUE/8/60 | P160: 0 | Q160: 0
A161: B/I/1/2/3 | B161: Organizacja komunikacji, marketing, nadzór i kontrola ruchu | C161: 3 podzadanie | D161: NIE | E161: 600 | F161: 60004 | G161: 4388 | H161: Zakup usług obejmujących tłumaczenia | I161: SFUE/8/61 | P161: 0 | Q161: 0
A162: B/I/1/2/3 | B162: Organizacja komunikacji, marketing, nadzór i kontrola ruchu | C162: 3 podzadanie | D162: NIE | E162: 600 | F162: 60004 | G162: 4389 | H162: Zakup usług obejmujących tłumaczenia | I162: SFUE/8/61 | P162: 0 | Q162: 0
A163: B/I/1/2/3 | B163: Organizacja komunikacji, marketing, nadzór i kontrola ruchu | C163: 3 podzadanie | D163: NIE | E163: 600 | F163: 60004 | G163: 4390 | H163: Zakup usług obejmujących wykonanie ekspertyz, analiz i opinii | I163: GMMW | P163: 0 | Q163: 0
A164: B/I/1/2/3 | B164: Organizacja komunikacji, marketing, nadzór i kontrola ruchu | C164: 3 podzadanie | D164: NIE | E164: 600 | F164: 60004 | G164: 4398 | H164: Zakup usług obejmujących wykonanie ekspertyz, analiz i opinii | I164: SFUE/19/6 | P164: 0 | Q164: 0
A165: B/I/1/2/3 | B165: Organizacja komunikacji, marketing, nadzór i kontrola ruchu | C165: 3 podzadanie | D165: NIE | E165: 600 | F165: 60004 | G165: 4398 | H165: Zakup usług obejmujących wykonanie ekspertyz, analiz i opinii | I165: SFUE/8/59 | P165: 0 | Q165: 0
A166: B/I/1/2/3 | B166: Organizacja komunikacji, marketing, nadzór i kontrola ruchu | C166: 3 podzadanie | D166: NIE | E166: 600 | F166: 60004 | G166: 4398 | H166: Zakup usług obejmujących wykonanie ekspertyz, analiz i opinii | I166: SFUE/8/60 | P166: 0 | Q166: 0
A167: B/I/1/2/3 | B167: Organizacja komunikacji, marketing, nadzór i kontrola ruchu | C167: 3 podzadanie | D167: NIE | E167: 600 | F167: 60004 | G167: 4398 | H167: Zakup usług obejmujących wykonanie ekspertyz, analiz i opinii | I167: SFUE/8/61 | P167: 0 | Q167: 0
A168: B/I/1/2/3 | B168: Organizacja komunikacji, marketing, nadzór i kontrola ruchu | C168: 3 podzadanie | D168: NIE | E168: 600 | F168: 60004 | G168: 4399 | H168: Zakup usług obejmujących wykonanie ekspertyz, analiz i opinii | I168: SFUE/8/61 | P168: 0 | Q168: 0
A169: B/I/1/2/3 | B169: Organizacja komunikacji, marketing, nadzór i kontrola ruchu | C169: 3 podzadanie | D169: NIE | E169: 600 | F169: 60004 | G169: 4399 | H169: Zakup usług obejmujących wykonanie ekspertyz, analiz i opinii | J169: =SUM(J170:J172) -> 0 | K169: 0 | L169: 0 | M169: 0 | N169: 0 | O169: 0 | P169: 0 | Q169: 0
A170: B/I/1/2/3 | B170: Organizacja komunikacji, marketing, nadzór i kontrola ruchu | C170: 3 podzadanie | D170: NIE | E170: 600 | F170: 60004 | G170: 4399 | H170: +000 | I170: SFUE/19/6 | P170: 0 | Q170: 0
A171: B/I/1/2/3 | B171: Organizacja komunikacji, marketing, nadzór i kontrola ruchu | C171: 3 podzadanie | D171: NIE | E171: 600 | F171: 60004 | G171: 4399 | H171: +001 | I171: SFUE/19/6 | P171: 0 | Q171: 0
A172: B/I/1/2/3 | B172: Organizacja komunikacji, marketing, nadzór i kontrola ruchu | C172: 3 podzadanie | D172: NIE | E172: 600 | F172: 60004 | G172: 4399 | H172: +002 | I172: SFUE/19/6 | P172: 0 | Q172: 0
A173: B/I/1/2/3 | B173: Organizacja komunikacji, marketing, nadzór i kontrola ruchu | C173: 3 podzadanie | D173: NIE | E173: 600 | F173: 60004 | G173: 4530 | H173: Podatek od towarów i usług (VAT) | I173: GMMW | P173: 0 | Q173: 0
A174: B/I/1/2/3 | B174: Organizacja komunikacji, marketing, nadzór i kontrola ruchu | C174: 3 podzadanie | D174: NIE | E174: 600 | F174: 60004 | G174: 4530 | H174: Podatek od towarów i usług (VAT) | I174: SFUE/23/6 | P174: 0 | Q174: 0
A175: B/I/1/2/3 | B175: Organizacja komunikacji, marketing, nadzór i kontrola ruchu | C175: 3 podzadanie | D175: NIE | E175: 600 | F175: 60004 | G175: 4538 | H175: Podatek od towarów i usług (VAT) | I175: SFUE/19/6 | P175: 0 | Q175: 0
A176: B/I/1/2/3 | B176: Organizacja komunikacji, marketing, nadzór i kontrola ruchu | C176: 3 podzadanie | D176: NIE | E176: 600 | F176: 60004 | G176: 4539 | H176: Podatek od towarów i usług (VAT) | J176: =SUM(J177:J179) -> 0 | K176: 0 | L176: 0 | M176: 0 | N176: 0 | O176: 0 | P176: 0 | Q176: 0
A177: B/I/1/2/3 | B177: Organizacja komunikacji, marketing, nadzór i kontrola ruchu | C177: 3 podzadanie | D177: NIE | E177: 600 | F177: 60004 | G177: 4539 | H177: +000 | I177: SFUE/19/6 | P177: 0 | Q177: 0
A178: B/I/1/2/3 | B178: Organizacja komunikacji, marketing, nadzór i kontrola ruchu | C178: 3 podzadanie | D178: NIE | E178: 600 | F178: 60004 | G178: 4539 | H178: +001 | I178: SFUE/19/6 | P178: 0 | Q178: 0
A179: B/I/1/2/3 | B179: Organizacja komunikacji, marketing, nadzór i kontrola ruchu | C179: 3 podzadanie | D179: NIE | E179: 600 | F179: 60004 | G179: 4539 | H179: +002 | I179: SFUE/19/6 | P179: 0 | Q179: 0
A180: B/I/1/2/3 | B180: Organizacja komunikacji, marketing, nadzór i kontrola ruchu | C180: 3 podzadanie | D180: NIE | E180: 600 | F180: 60022 | J180: =SUM(J181:J184) -> 0 | K180: 0 | L180: 0 | M180: 0 | N180: 0 | O180: 0 | P180: 0 | Q180: 0
A181: B/I/1/2/3 | B181: Organizacja komunikacji, marketing, nadzór i kontrola ruchu | C181: 3 podzadanie | D181: NIE | E181: 600 | F181: 60022 | G181: 4210 | H181: Zakup materiałów i wyposażenia | I181: GMMW | P181: 0 | Q181: 0
A182: B/I/1/2/3 | B182: Organizacja komunikacji, marketing, nadzór i kontrola ruchu | C182: 3 podzadanie | D182: NIE | E182: 600 | F182: 60022 | G182: 4270 | H182: Zakup usług remontowych | I182: GMMW | P182: 0 | Q182: 0
A183: B/I/1/2/3 | B183: Organizacja komunikacji, marketing, nadzór i kontrola ruchu | C183: 3 podzadanie | D183: NIE | E183: 600 | F183: 60022 | G183: 4300 | H183: Zakup usług pozostałych | I183: GMMW | P183: 0 | Q183: 0
A184: B/I/1/2/3 | B184: Organizacja komunikacji, marketing, nadzór i kontrola ruchu | C184: 3 podzadanie | D184: NIE | E184: 600 | F184: 60022 | G184: 4430 | H184: Różne opłaty i składki | I184: GMMW | P184: 0 | Q184: 0
A185: B/I/1/2/3 | B185: Organizacja komunikacji, marketing, nadzór i kontrola ruchu | C185: 3 podzadanie | D185: NIE | E185: 600 | F185: 60095 | J185: =SUM(J186:J189) -> 0 | K185: 0 | L185: 0 | M185: 0 | N185: 0 | O185: 0 | P185: 0 | Q185: 0
A186: B/I/1/2/3 | B186: Organizacja komunikacji, marketing, nadzór i kontrola ruchu | C186: 3 podzadanie | D186: NIE | E186: 600 | F186: 60095 | G186: 4210 | H186: Zakup materiałów i wyposażenia | I186: BO/25/01/0038 | P186: 0 | Q186: 0
A187: B/I/1/2/3 | B187: Organizacja komunikacji, marketing, nadzór i kontrola ruchu | C187: 3 podzadanie | D187: NIE | E187: 600 | F187: 60095 | G187: 4210 | H187: Zakup materiałów i wyposażenia | I187: GMMW | P187: 0 | Q187: 0
A188: B/I/1/2/3 | B188: Organizacja komunikacji, marketing, nadzór i kontrola ruchu | C188: 3 podzadanie | D188: NIE | E188: 600 | F188: 60095 | G188: 4270 | H188: Zakup usług remontowych | I188: GMMW | P188: 0 | Q188: 0
A189: B/I/1/2/3 | B189: Organizacja komunikacji, marketing, nadzór i kontrola ruchu | C189: 3 podzadanie | D189: NIE | E189: 600 | F189: 60095 | G189: 4300 | H189: Zakup usług pozostałych | I189: GMMW | P189: 0 | Q189: 0
A190: B/I/1/3 | B190: Utrzymanie infrastruktury przystankowej | C190: 3 zadanie | D190: T | J190: =SUM(J191) -> 0 | K190: 0 | L190: 0 | M190: 0 | N190: 0 | O190: 0 | P190: 0 | Q190: 0
A191: B/I/1/3 | B191: Utrzymanie infrastruktury przystankowej | C191: 3 zadanie | D191: NIE | E191: 600 | F191: 60020 | J191: =SUM(J192:J200) -> 0 | K191: 0 | L191: 0 | M191: 0 | N191: 0 | O191: 0 | P191: 0 | Q191: 0
A192: B/I/1/3 | B192: Utrzymanie infrastruktury przystankowej | C192: 3 zadanie | D192: NIE | E192: 600 | F192: 60020 | G192: 4210 | H192: Zakup materiałów i wyposażenia | I192: GMMW | P192: 0 | Q192: 0
A193: B/I/1/3 | B193: Utrzymanie infrastruktury przystankowej | C193: 3 zadanie | D193: NIE | E193: 600 | F193: 60020 | G193: 4270 | H193: Zakup usług remontowych | I193: GMMW/C | P193: 0 | Q193: 0
A194: B/I/1/3 | B194: Utrzymanie infrastruktury przystankowej | C194: 3 zadanie | D194: NIE | E194: 600 | F194: 60020 | G194: 4270 | H194: Zakup usług remontowych | I194: GMMW | P194: 0 | Q194: 0
A195: B/I/1/3 | B195: Utrzymanie infrastruktury przystankowej | C195: 3 zadanie | D195: NIE | E195: 600 | F195: 60020 | G195: 4270 | H195: Zakup usług remontowych | I195: GUPP | P195: 0 | Q195: 0
A196: B/I/1/3 | B196: Utrzymanie infrastruktury przystankowej | C196: 3 zadanie | D196: NIE | E196: 600 | F196: 60020 | G196: 4300 | H196: Zakup usług pozostałych | I196: GMMW/C | P196: 0 | Q196: 0
A197: B/I/1/3 | B197: Utrzymanie infrastruktury przystankowej | C197: 3 zadanie | D197: NIE | E197: 600 | F197: 60020 | G197: 4300 | H197: Zakup usług pozostałych | I197: GMMW | P197: 0 | Q197: 0
A198: B/I/1/3 | B198: Utrzymanie infrastruktury przystankowej | C198: 3 zadanie | D198: NIE | E198: 600 | F198: 60020 | G198: 4520 | H198: Opłaty na rzecz budżetów jednostek samorządu terytorialnego | I198: GMMW | P198: 0 | Q198: 0
A199: B/I/1/3 | B199: Utrzymanie infrastruktury przystankowej | C199: 3 zadanie | D199: NIE | E199: 600 | F199: 60020 | G199: 4530 | H199: Podatek od towarów i usług (VAT) | I199: GMMW/C | P199: 0 | Q199: 0
A200: B/I/1/3 | B200: Utrzymanie infrastruktury przystankowej | C200: 3 zadanie | D200: NIE | E200: 600 | F200: 60020 | G200: 4530 | H200: Podatek od towarów i usług (VAT) | I200: GMMW | P200: 0 | Q200: 0
A201: B/I/1/4 | B201: Opracowania i analizy związane z komunikacją miejską | C201: 4 zadanie | D201: T | J201: =SUM(J208,J202) -> 0 | K201: 0 | L201: 0 | M201: 0 | N201: 0 | O201: 0 | P201: 0 | Q201: 0
A202: B/I/1/4 | B202: Opracowania i analizy związane z komunikacją miejską | C202: 4 zadanie | D202: NIE | E202: 600 | F202: 60004 | J202: =SUM(J203:J207) -> 0 | K202: 0 | L202: 0 | M202: 0 | N202: 0 | O202: 0 | P202: 0 | Q202: 0
... 4295 more rows

Sheet KLASYCZNY
K1: Projekt z dnia 09.04.2025 r.
K2: Załącznik nr 2
K3: do uchwały Nr
K4: Rady Dzielnicy Bielany
K5: Miasta Stołecznego Warszawy
K6: z dnia
A9: PLAN WYDATKÓW na 2025 r.w UKŁADZIE KLASYCZNYM
D11: =IF(OR(P12<>"",O12<>""),"Istnieją błędy","") ->  | E11: =E9270 -> 1068078344 | F11: 407400374 | G11: 609000 | H11: 2607335 | I11: 609000 | J11: 2607335 | K11: 1070076679 | L11: 409398709
A12: Dział | B12: Rozdział | C12: § | D12: Wyszczególnienie | E12: PLAN | F12: w tym Urząd m.st. Warszawy | G12: PLAN Zmiana[-] | H12: PLAN Zmiana[+] | I12: w tym Urząd Zmiana[-] | J12: w tym Urząd Zmiana[+] | K12: PLAN PO ZMIANIE | L12: w tym Urząd PO ZMIANIE | M12: Pozycja wypełniona | N12: Zmiany wypełnione | O12: =IF(COUNTIF(O13:O172,"błędny urząd")<>0,"ŹLE","") ->  | P12: =IF(COUNTIF(P13:P172,"ujemny plan")<>0,"ŹLE","") -> 
A13: 010 | D13: Rolnictwo i łowiectwo | E13: =SUM(E14,E23) -> 0 | F13: 0 | G13: 0 | H13: 0 | I13: 0 | J13: 0 | K13: 0 | L13: 0 | M13: =IF(SUM(E13:L13)>0,"Tak","") ->  | N13: =IF(SUM(G13:J13)>0,"Tak","") ->  | O13: =IF(OR(E13<F13,K13<L13,G13<I13,H13<J13),"błędny urząd","") ->  | P13: =IF(OR(E13<0,F13<0,K13<0,L13<0),"ujemny plan","") -> 
D14: WYDATKI BIEŻĄCE | E14: =SUM(E15,E18:E22) -> 0 | F14: 0 | G14: 0 | H14: 0 | I14: 0 | J14: 0 | K14: 0 | L14: 0
D15: Wydatki jednostek budżetowych w tym na: | E15: =SUM(E16:E17) -> 0 | F15: 0 | G15: 0 | H15: 0 | I15: 0 | J15: 0 | K15: 0 | L15: 0
D16: wynagrodzenia i składki od nich naliczane | E16: =SUM(E27,E41,E53,E65) -> 0 | F16: 0 | G16: 0 | H16: 0 | I16: 0 | J16: 0 | K16: 0 | L16: 0
D17: wydatki związane z realizacją ich zadań statutowych | E17: 0 | F17: 0 | G17: 0 | H17: 0 | I17: 0 | J17: 0 | K17: 0 | L17: 0
D18: Dotacje na zadania bieżące | E18: 0 | F18: 0 | G18: 0 | H18: 0 | I18: 0 | J18: 0 | K18: 0 | L18: 0
D19: Świadczenia na rzecz osób fizycznych | E19: 0 | F19: 0 | G19: 0 | H19: 0 | I19: 0 | J19: 0 | K19: 0 | L19: 0
D20: Wydatki na programy finansowane z UE | E20: 0 | F20: 0 | G20: 0 | H20: 0 | I20: 0 | J20: 0 | K20: 0 | L20: 0
D21: Obsługa długu | E21: 0 | F21: 0 | G21: 0 | H21: 0 | I21: 0 | J21: 0 | K21: 0 | L21: 0
D22: Poręczenia i gwarancje | E22: 0 | F22: 0 | G22: 0 | H22: 0 | I22: 0 | J22: 0 | K22: 0 | L22: 0
D23: WYDATKI MAJĄTKOWE | E23: 0 | F23: 0 | G23: 0 | H23: 0 | I23: 0 | J23: 0 | K23: 0 | L23: 0
B24: 01005 | D24: Prace geodezyjno - urządzeniowe na potrzeby rolnictwa | E24: =SUM(E25,E34) -> 0 | F24: 0 | G24: 0 | H24: 0 | I24: 0 | J24: 0 | K24: 0 | L24: 0
D25: WYDATKI BIEŻĄCE | E25: =SUM(E26,E29:E33) -> 0 | F25: 0 | G25: 0 | H25: 0 | I25: 0 | J25: 0 | K25: 0 | L25: 0
D26: Wydatki jednostek budżetowych w tym na: | E26: =SUM(E27:E28) -> 0 | F26: 0 | G26: 0 | H26: 0 | I26: 0 | J26: 0 | K26: 0 | L26: 0
D27: wynagrodzenia i składki od nich naliczane
D28: wydatki związane z realizacją ich zadań statutowych | E28: =SUM(E35) -> 0 | F28: 0 | G28: 0 | H28: 0 | I28: 0 | J28: 0 | K28: 0 | L28: 0
D29: Dotacje na zadania bieżące
D30: Świadczenia na rzecz osób fizycznych
D31: Wydatki na programy finansowane z UE
D32: Obsługa długu
D33: Poręczenia i gwarancje
D34: WYDATKI MAJĄTKOWE
C35: 4300 | D35: Zakup usług pozostałych | E35: =SUM(E36:E37) -> 0 | F35: 0 | G35: 0 | H35: 0 | I35: 0 | J35: 0 | K35: 0 | L35: 0
D36: Środki z budżetu państwa | E36: =0 -> 0 | F36: =0 -> 0 | G36: =0 -> 0 | H36: =0 -> 0 | I36: =0 -> 0 | J36: =0 -> 0 | K36: =E36-G36+H36 -> 0 | L36: =F36-I36+J36 -> 0 | M36: =IF(SUM(E36:L36)>0,"Tak","") ->  | N36: =IF(SUM(G36:J36)>0,"Tak","") ->  | O36: =IF(OR(E36<F36,K36<L36,G36<I36,H36<J36),"błędny urząd","") ->  | P36: =IF(OR(E36<0,F36<0,K36<0,L36<0),"ujemny plan","") -> 
D37: Środki z budżetu miasta | E37: =0 -> 0 | F37: =0 -> 0 | G37: =0 -> 0 | H37: =0 -> 0 | I37: =0 -> 0 | J37: =0 -> 0 | K37: =E37-G37+H37 -> 0 | L37: =F37-I37+J37 -> 0 | M37: =IF(SUM(E37:L37)>0,"Tak","") ->  | N37: =IF(SUM(G37:J37)>0,"Tak","") ->  | O37: =IF(OR(E37<F37,K37<L37,G37<I37,H37<J37),"błędny urząd","") ->  | P37: =IF(OR(E37<0,F37<0,K37<0,L37<0),"ujemny plan","") -> 
B38: 01030 | D38: Izby rolnicze | E38: =SUM(E39,E48) -> 0 | F38: 0 | G38: 0 | H38: 0 | I38: 0 | J38: 0 | K38: 0 | L38: 0
D39: WYDATKI BIEŻĄCE | E39: =SUM(E40,E43:E47) -> 0 | F39: 0 | G39: 0 | H39: 0 | I39: 0 | J39: 0 | K39: 0 | L39: 0
D40: Wydatki jednostek budżetowych w tym na: | E40: =SUM(E41:E42) -> 0 | F40: 0 | G40: 0 | H40: 0 | I40: 0 | J40: 0 | K40: 0 | L40: 0
D41: wynagrodzenia i składki od nich naliczane
D42: wydatki związane z realizacją ich zadań statutowych | E42: =SUM(E49) -> 0 | F42: 0 | G42: 0 | H42: 0 | I42: 0 | J42: 0 | K42: 0 | L42: 0
D43: Dotacje na zadania bieżące
D44: Świadczenia na rzecz osób fizycznych
D45: Wydatki na programy finansowane z UE
D46: Obsługa długu
D47: Poręczenia i gwarancje
D48: WYDATKI MAJĄTKOWE
C49: 2850 | D49: Wpłaty gmin na rzecz izb rolniczych w wysokości 2% uzyskanych wpływów z podatku rolnego | E49: =0+ZADANIOWY!J2028 -> 0 | F49: =0+ZADANIOWY!K2028 -> 0 | G49: =0+ZADANIOWY!L2028 -> 0 | H49: =0+ZADANIOWY!M2028 -> 0 | I49: =0+ZADANIOWY!N2028 -> 0 | J49: =0+ZADANIOWY!O2028 -> 0 | K49: 0 | L49: 0
B50: 01078 | D50: Izby rolnicze | E50: =SUM(E51,E60) -> 0 | F50: 0 | G50: 0 | H50: 0 | I50: 0 | J50: 0 | K50: 0 | L50: 0
D51: WYDATKI BIEŻĄCE | E51: =SUM(E52,E55:E59) -> 0 | F51: 0 | G51: 0 | H51: 0 | I51: 0 | J51: 0 | K51: 0 | L51: 0
D52: Wydatki jednostek budżetowych w tym na: | E52: =SUM(E53:E54) -> 0 | F52: 0 | G52: 0 | H52: 0 | I52: 0 | J52: 0 | K52: 0 | L52: 0
D53: wynagrodzenia i składki od nich naliczane
D54: wydatki związane z realizacją ich zadań statutowych
D55: Dotacje na zadania bieżące | E55: =SUM(E61) -> 0 | F55: 0 | G55: 0 | H55: 0 | I55: 0 | J55: 0 | K55: 0 | L55: 0
D56: Świadczenia na rzecz osób fizycznych
D57: Wydatki na programy finansowane z UE
D58: Obsługa długu
D59: Poręczenia i gwarancje
D60: WYDATKI MAJĄTKOWE
C61: 2710 | D61: Dotacja celowa na pomoc finansową udzielaną między jednostkami samorządu terytorialnego na dofinansowanie własnych zadań bieżących | E61: =0 -> 0 | F61: =0 -> 0 | G61: =0 -> 0 | H61: =0 -> 0 | I61: =0 -> 0 | J61: =0 -> 0 | K61: 0 | L61: 0
B62: 01095 | D62: Pozostała działalność | E62: =SUM(E63,E72) -> 0 | F62: 0 | G62: 0 | H62: 0 | I62: 0 | J62: 0 | K62: 0 | L62: 0
D63: WYDATKI BIEŻĄCE | E63: =SUM(E64,E67:E71) -> 0 | F63: 0 | G63: 0 | H63: 0 | I63: 0 | J63: 0 | K63: 0 | L63: 0
D64: Wydatki jednostek budżetowych w tym na: | E64: =SUM(E65:E66) -> 0 | F64: 0 | G64: 0 | H64: 0 | I64: 0 | J64: 0 | K64: 0 | L64: 0
D65: wynagrodzenia i składki od nich naliczane | E65: =SUM(E73,E76,E79,E88) -> 0 | F65: 0 | G65: 0 | H65: 0 | I65: 0 | J65: 0 | K65: 0 | L65: 0
D66: wydatki związane z realizacją ich zadań statutowych | E66: =SUM(E82,E85) -> 0 | F66: 0 | G66: 0 | H66: 0 | I66: 0 | J66: 0 | K66: 0 | L66: 0
D67: Dotacje na zadania bieżące
D68: Świadczenia na rzecz osób fizycznych
D69: Wydatki na programy finansowane z UE
D70: Obsługa długu
D71: Poręczenia i gwarancje
D72: WYDATKI MAJĄTKOWE
C73: 4010 | D73: Wynagrodzenia osobowe pracowników | E73: =SUM(E74:E75) -> 0 | F73: 0 | G73: 0 | H73: 0 | I73: 0 | J73: 0 | K73: 0 | L73: 0
D74: Środki z budżetu państwa | E74: =0 -> 0 | F74: =0 -> 0 | G74: =0 -> 0 | H74: =0 -> 0 | I74: =0 -> 0 | J74: =0 -> 0 | K74: 0 | L74: 0
D75: Środki z budżetu miasta | E75: =0 -> 0 | F75: =0 -> 0 | G75: =0 -> 0 | H75: =0 -> 0 | I75: =0 -> 0 | J75: =0 -> 0 | K75: 0 | L75: 0
C76: 4110 | D76: Składki na ubezpieczenia społeczne | E76: =SUM(E77:E78) -> 0 | F76: 0 | G76: 0 | H76: 0 | I76: 0 | J76: 0 | K76: 0 | L76: 0
D77: Środki z budżetu państwa | E77: =0 -> 0 | F77: =0 -> 0 | G77: =0 -> 0 | H77: =0 -> 0 | I77: =0 -> 0 | J77: =0 -> 0 | K77: 0 | L77: 0
D78: Środki z budżetu miasta | E78: =0 -> 0 | F78: =0 -> 0 | G78: =0 -> 0 | H78: =0 -> 0 | I78: =0 -> 0 | J78: =0 -> 0 | K78: 0 | L78: 0
C79: 4120 | D79: Składki na Fundusz Pracy oraz Fundusz Solidarnościowy | E79: =SUM(E80:E81) -> 0 | F79: 0 | G79: 0 | H79: 0 | I79: 0 | J79: 0 | K79: 0 | L79: 0
D80: Środki z budżetu państwa | E80: =0 -> 0 | F80: =0 -> 0 | G80: =0 -> 0 | H80: =0 -> 0 | I80: =0 -> 0 | J80: =0 -> 0 | K80: 0 | L80: 0
D81: Środki z budżetu miasta | E81: =0 -> 0 | F81: =0 -> 0 | G81: =0 -> 0 | H81: =0 -> 0 | I81: =0 -> 0 | J81: =0 -> 0 | K81: 0 | L81: 0
C82: 4300 | D82: Zakup usług pozostałych | E82: =SUM(E83:E84) -> 0 | F82: 0 | G82: 0 | H82: 0 | I82: 0 | J82: 0 | K82: 0 | L82: 0
D83: Środki z budżetu państwa | E83: =0+ZADANIOWY!J2021 -> 0 | F83: =0+ZADANIOWY!K2021 -> 0 | G83: =0+ZADANIOWY!L2021 -> 0 | H83: =0+ZADANIOWY!M2021 -> 0 | I83: =0+ZADANIOWY!N2021 -> 0 | J83: =0+ZADANIOWY!O2021 -> 0 | K83: 0 | L83: 0
D84: Środki z budżetu miasta | E84: =0+ZADANIOWY!J2022 -> 0 | F84: =0+ZADANIOWY!K2022 -> 0 | G84: =0+ZADANIOWY!L2022 -> 0 | H84: =0+ZADANIOWY!M2022 -> 0 | I84: =0+ZADANIOWY!N2022 -> 0 | J84: =0+ZADANIOWY!O2022 -> 0 | K84: 0 | L84: 0
C85: 4430 | D85: Różne opłaty i składki | E85: =SUM(E86:E87) -> 0 | F85: 0 | G85: 0 | H85: 0 | I85: 0 | J85: 0 | K85: 0 | L85: 0
D86: Środki z budżetu państwa | E86: =0+ZADANIOWY!J2024 -> 0 | F86: =0+ZADANIOWY!K2024 -> 0 | G86: =0+ZADANIOWY!L2024 -> 0 | H86: =0+ZADANIOWY!M2024 -> 0 | I86: =0+ZADANIOWY!N2024 -> 0 | J86: =0+ZADANIOWY!O2024 -> 0 | K86: 0 | L86: 0
D87: Środki z budżetu miasta | E87: =0+ZADANIOWY!J2025 -> 0 | F87: =0+ZADANIOWY!K2025 -> 0 | G87: =0+ZADANIOWY!L2025 -> 0 | H87: =0+ZADANIOWY!M2025 -> 0 | I87: =0+ZADANIOWY!N2025 -> 0 | J87: =0+ZADANIOWY!O2025 -> 0 | K87: 0 | L87: 0
C88: 4710 | D88: Wpłaty na PPK finansowane przez podmiot zatrudniający | E88: =SUM(E89:E90) -> 0 | F88: 0 | G88: 0 | H88: 0 | I88: 0 | J88: 0 | K88: 0 | L88: 0
D89: Środki z budżetu państwa | E89: =0 -> 0 | F89: =0 -> 0 | G89: =0 -> 0 | H89: =0 -> 0 | I89: =0 -> 0 | J89: =0 -> 0 | K89: 0 | L89: 0
D90: Środki z budżetu miasta | E90: =0 -> 0 | F90: =0 -> 0 | G90: =0 -> 0 | H90: =0 -> 0 | I90: =0 -> 0 | J90: =0 -> 0 | K90: 0 | L90: 0
A91: 020 | D91: Leśnictwo | E91: =SUM(E92,E101) -> 0 | F91: 0 | G91: 0 | H91: 0 | I91: 0 | J91: 0 | K91: 0 | L91: 0
D92: WYDATKI BIEŻĄCE | E92: =SUM(E93,E96:E100) -> 0 | F92: 0 | G92: 0 | H92: 0 | I92: 0 | J92: 0 | K92: 0 | L92: 0
D93: Wydatki jednostek budżetowych w tym na: | E93: =SUM(E94:E95) -> 0 | F93: 0 | G93: 0 | H93: 0 | I93: 0 | J93: 0 | K93: 0 | L93: 0
D94: wynagrodzenia i składki od nich naliczane | E94: =SUM(E105,E155) -> 0 | F94: 0 | G94: 0 | H94: 0 | I94: 0 | J94: 0 | K94: 0 | L94: 0
D95: wydatki związane z realizacją ich zadań statutowych | E95: 0 | F95: 0 | G95: 0 | H95: 0 | I95: 0 | J95: 0 | K95: 0 | L95: 0
D96: Dotacje na zadania bieżące | E96: 0 | F96: 0 | G96: 0 | H96: 0 | I96: 0 | J96: 0 | K96: 0 | L96: 0
D97: Świadczenia na rzecz osób fizycznych | E97: 0 | F97: 0 | G97: 0 | H97: 0 | I97: 0 | J97: 0 | K97: 0 | L97: 0
D98: Wydatki na programy finansowane z UE | E98: 0 | F98: 0 | G98: 0 | H98: 0 | I98: 0 | J98: 0 | K98: 0 | L98: 0
D99: Obsługa długu | E99: 0 | F99: 0 | G99: 0 | H99: 0 | I99: 0 | J99: 0 | K99: 0 | L99: 0
D100: Poręczenia i gwarancje | E100: 0 | F100: 0 | G100: 0 | H100: 0 | I100: 0 | J100: 0 | K100: 0 | L100: 0
D101: WYDATKI MAJĄTKOWE | E101: 0 | F101: 0 | G101: 0 | H101: 0 | I101: 0 | J101: 0 | K101: 0 | L101: 0 | M101: =IF(SUM(E101:L101)>0,"Tak","") ->  | N101: =IF(SUM(G101:J101)>0,"Tak","") ->  | O101: =IF(OR(E101<F101,K101<L101,G101<I101,H101<J101),"błędny urząd","") ->  | P101: =IF(OR(E101<0,F101<0,K101<0,L101<0),"ujemny plan","") -> 
B102: 02001 | D102: Gospodarka leśna | E102: =SUM(E103,E112) -> 0 | F102: 0 | G102: 0 | H102: 0 | I102: 0 | J102: 0 | K102: 0 | L102: 0
D103: WYDATKI BIEŻĄCE | E103: =SUM(E104,E107:E111) -> 0 | F103: 0 | G103: 0 | H103: 0 | I103: 0 | J103: 0 | K103: 0 | L103: 0
D104: Wydatki jednostek budżetowych w tym na: | E104: =SUM(E105:E106) -> 0 | F104: 0 | G104: 0 | H104: 0 | I104: 0 | J104: 0 | K104: 0 | L104: 0
D105: wynagrodzenia i składki od nich naliczane | E105: =SUM(E114:E117,E119,E151) -> 0 | F105: 0 | G105: 0 | H105: 0 | I105: 0 | J105: 0 | K105: 0 | L105: 0
D106: wydatki związane z realizacją ich zadań statutowych | E106: =SUM(E118,E120:E121,E124:E129,E132:E150) -> 0 | F106: 0 | G106: 0 | H106: 0 | I106: 0 | J106: 0 | K106: 0 | L106: 0
D107: Dotacje na zadania bieżące
D108: Świadczenia na rzecz osób fizycznych | E108: =SUM(E113) -> 0 | F108: 0 | G108: 0 | H108: 0 | I108: 0 | J108: 0 | K108: 0 | L108: 0
D109: Wydatki na programy finansowane z UE | E109: =SUM(E122:E123,E130:E131) -> 0 | F109: 0 | G109: 0 | H109: 0 | I109: 0 | J109: 0 | K109: 0 | L109: 0
D110: Obsługa długu
D111: Poręczenia i gwarancje
D112: WYDATKI MAJĄTKOWE
C113: 3020 | D113: Wydatki osobowe niezaliczone do wynagrodzeń | E113: =0+ZADANIOWY!J1930 -> 0 | F113: =0+ZADANIOWY!K1930 -> 0 | G113: =0+ZADANIOWY!L1930 -> 0 | H113: =0+ZADANIOWY!M1930 -> 0 | I113: =0+ZADANIOWY!N1930 -> 0 | J113: =0+ZADANIOWY!O1930 -> 0 | K113: =E113-G113+H113 -> 0 | L113: =F113-I113+J113 -> 0
C114: 4010 | D114: Wynagrodzenia osobowe pracowników | E114: =0+ZADANIOWY!J1931 -> 0 | F114: =0+ZADANIOWY!K1931 -> 0 | G114: =0+ZADANIOWY!L1931 -> 0 | H114: =0+ZADANIOWY!M1931 -> 0 | I114: =0+ZADANIOWY!N1931 -> 0 | J114: =0+ZADANIOWY!O1931 -> 0 | K114: 0 | L114: 0
C115: 4040 | D115: Dodatkowe wynagrodzenie roczne | E115: =0+ZADANIOWY!J1932 -> 0 | F115: =0+ZADANIOWY!K1932 -> 0 | G115: =0+ZADANIOWY!L1932 -> 0 | H115: =0+ZADANIOWY!M1932 -> 0 | I115: =0+ZADANIOWY!N1932 -> 0 | J115: =0+ZADANIOWY!O1932 -> 0 | K115: 0 | L115: 0
C116: 4110 | D116: Składki na ubezpieczenia społeczne | E116: =0+ZADANIOWY!J1933 -> 0 | F116: =0+ZADANIOWY!K1933 -> 0 | G116: =0+ZADANIOWY!L1933 -> 0 | H116: =0+ZADANIOWY!M1933 -> 0 | I116: =0+ZADANIOWY!N1933 -> 0 | J116: =0+ZADANIOWY!O1933 -> 0 | K116: 0 | L116: 0
C117: 4120 | D117: Składki na Fundusz Pracy oraz Fundusz Solidarnościowy | E117: =0+ZADANIOWY!J1934 -> 0 | F117: =0+ZADANIOWY!K1934 -> 0 | G117: =0+ZADANIOWY!L1934 -> 0 | H117: =0+ZADANIOWY!M1934 -> 0 | I117: =0+ZADANIOWY!N1934 -> 0 | J117: =0+ZADANIOWY!O1934 -> 0 | K117: 0 | L117: 0
C118: 4140 | D118: Wpłaty na Państwowy Fundusz Rehabilitacji Osób Niepełnosprawnych | E118: =0+ZADANIOWY!J1935 -> 0 | F118: =0+ZADANIOWY!K1935 -> 0 | G118: =0+ZADANIOWY!L1935 -> 0 | H118: =0+ZADANIOWY!M1935 -> 0 | I118: =0+ZADANIOWY!N1935 -> 0 | J118: =0+ZADANIOWY!O1935 -> 0 | K118: 0 | L118: 0
C119: 4170 | D119: Wynagrodzenia bezosobowe | E119: =0+ZADANIOWY!J1936+ZADANIOWY!J1937+ZADANIOWY!J1938 -> 0 | F119: =0+ZADANIOWY!K1936+ZADANIOWY!K1937+ZADANIOWY!K1938 -> 0 | G119: =0+ZADANIOWY!L1936+ZADANIOWY!L1937+ZADANIOWY!L1938 -> 0 | H119: =0+ZADANIOWY!M1936+ZADANIOWY!M1937+ZADANIOWY!M1938 -> 0 | I119: =0+ZADANIOWY!N1936+ZADANIOWY!N1937+ZADANIOWY!N1938 -> 0 | J119: =0+ZADANIOWY!O1936+ZADANIOWY!O1937+ZADANIOWY!O1938 -> 0 | K119: 0 | L119: 0
C120: 4190 | D120: Nagrody konkursowe | E120: =0 -> 0 | F120: =0 -> 0 | G120: =0 -> 0 | H120: =0 -> 0 | I120: =0 -> 0 | J120: =0 -> 0 | K120: 0 | L120: 0
C121: 4210 | D121: Zakup materiałów i wyposażenia | E121: =0+ZADANIOWY!J1939+ZADANIOWY!J1940+ZADANIOWY!J1941+ZADANIOWY!J1942+ZADANIOWY!J1943+ZADANIOWY!J1944+ZADANIOWY!J1945 -> 0 | F121: =0+ZADANIOWY!K1939+ZADANIOWY!K1940+ZADANIOWY!K1941+ZADANIOWY!K1942+ZADANIOWY!K1943+ZADANIOWY!K1944+ZADANIOWY!K1945 -> 0 | G121: =0+ZADANIOWY!L1939+ZADANIOWY!L1940+ZADANIOWY!L1941+ZADANIOWY!L1942+ZADANIOWY!L1943+ZADANIOWY!L1944+ZADANIOWY!L1945 -> 0 | H121: =0+ZADANIOWY!M1939+ZADANIOWY!M1940+ZADANIOWY!M1941+ZADANIOWY!M1942+ZADANIOWY!M1943+ZADANIOWY!M1944+ZADANIOWY!M1945 -> 0 | I121: =0+ZADANIOWY!N1939+ZADANIOWY!N1940+ZADANIOWY!N1941+ZADANIOWY!N1942+ZADANIOWY!N1943+ZADANIOWY!N1944+ZADANIOWY!N1945 -> 0 | J121: =0+ZADANIOWY!O1939+ZADANIOWY!O1940+ZADANIOWY!O1941+ZADANIOWY!O1942+ZADANIOWY!O1943+ZADANIOWY!O1944+ZADANIOWY!O1945 -> 0 | K121: 0 | L121: 0
C122: 4217 | D122: Zakup materiałów i wyposażenia | E122: =0 -> 0 | F122: =0 -> 0 | G122: =0 -> 0 | H122: =0 -> 0 | I122: =0 -> 0 | J122: =0 -> 0 | K122: 0 | L122: 0
C123: 4219 | D123: Zakup materiałów i wyposażenia | E123: =0 -> 0 | F123: =0 -> 0 | G123: =0 -> 0 | H123: =0 -> 0 | I123: =0 -> 0 | J123: =0 -> 0 | K123: 0 | L123: 0
C124: 4220 | D124: Zakup środków żywności | E124: =0+ZADANIOWY!J1946+ZADANIOWY!J1947 -> 0 | F124: =0+ZADANIOWY!K1946+ZADANIOWY!K1947 -> 0 | G124: =0+ZADANIOWY!L1946+ZADANIOWY!L1947 -> 0 | H124: =0+ZADANIOWY!M1946+ZADANIOWY!M1947 -> 0 | I124: =0+ZADANIOWY!N1946+ZADANIOWY!N1947 -> 0 | J124: =0+ZADANIOWY!O1946+ZADANIOWY!O1947 -> 0 | K124: 0 | L124: 0
C125: 4240 | D125: Zakup środków dydaktycznych i książek | E125: =0 -> 0 | F125: =0 -> 0 | G125: =0 -> 0 | H125: =0 -> 0 | I125: =0 -> 0 | J125: =0 -> 0 | K125: 0 | L125: 0
C126: 4260 | D126: Zakup energii | E126: =0+ZADANIOWY!J1948 -> 0 | F126: =0+ZADANIOWY!K1948 -> 0 | G126: =0+ZADANIOWY!L1948 -> 0 | H126: =0+ZADANIOWY!M1948 -> 0 | I126: =0+ZADANIOWY!N1948 -> 0 | J126: =0+ZADANIOWY!O1948 -> 0 | K126: 0 | L126: 0
C127: 4270 | D127: Zakup usług remontowych | E127: =0+ZADANIOWY!J1949 -> 0 | F127: =0+ZADANIOWY!K1949 -> 0 | G127: =0+ZADANIOWY!L1949 -> 0 | H127: =0+ZADANIOWY!M1949 -> 0 | I127: =0+ZADANIOWY!N1949 -> 0 | J127: =0+ZADANIOWY!O1949 -> 0 | K127: 0 | L127: 0
C128: 4280 | D128: Zakup usług zdrowotnych | E128: =0+ZADANIOWY!J1950 -> 0 | F128: =0+ZADANIOWY!K1950 -> 0 | G128: =0+ZADANIOWY!L1950 -> 0 | H128: =0+ZADANIOWY!M1950 -> 0 | I128: =0+ZADANIOWY!N1950 -> 0 | J128: =0+ZADANIOWY!O1950 -> 0 | K128: 0 | L128: 0
C129: 4300 | D129: Zakup usług pozostałych | E129: =0+ZADANIOWY!J1951+ZADANIOWY!J1952+ZADANIOWY!J1953+ZADANIOWY!J1954+ZADANIOWY!J1955+ZADANIOWY!J1956 -> 0 | F129: =0+ZADANIOWY!K1951+ZADANIOWY!K1952+ZADANIOWY!K1953+ZADANIOWY!K1954+ZADANIOWY!K1955+ZADANIOWY!K1956 -> 0 | G129: =0+ZADANIOWY!L1951+ZADANIOWY!L1952+ZADANIOWY!L1953+ZADANIOWY!L1954+ZADANIOWY!L1955+ZADANIOWY!L1956 -> 0 | H129: =0+ZADANIOWY!M1951+ZADANIOWY!M1952+ZADANIOWY!M1953+ZADANIOWY!M1954+ZADANIOWY!M1955+ZADANIOWY!M1956 -> 0 | I129: =0+ZADANIOWY!N1951+ZADANIOWY!N1952+ZADANIOWY!N1953+ZADANIOWY!N1954+ZADANIOWY!N1955+ZADANIOWY!N1956 -> 0 | J129: =0+ZADANIOWY!O1951+ZADANIOWY!O1952+ZADANIOWY!O1953+ZADANIOWY!O1954+ZADANIOWY!O1955+ZADANIOWY!O1956 -> 0 | K129: 0 | L129: 0
C130: 4307 | D130: Zakup usług pozostałych | E130: =0 -> 0 | F130: =0 -> 0 | G130: =0 -> 0 | H130: =0 -> 0 | I130: =0 -> 0 | J130: =0 -> 0 | K130: 0 | L130: 0
C131: 4309 | D131: Zakup usług pozostałych | E131: =0 -> 0 | F131: =0 -> 0 | G131: =0 -> 0 | H131: =0 -> 0 | I131: =0 -> 0 | J131: =0 -> 0 | K131: 0 | L131: 0
C132: 4360 | D132: Opłaty z tytułu zakupu usług telekomunikacyjnych | E132: =0+ZADANIOWY!J1957 -> 0 | F132: =0+ZADANIOWY!K1957 -> 0 | G132: =0+ZADANIOWY!L1957 -> 0 | H132: =0+ZADANIOWY!M1957 -> 0 | I132: =0+ZADANIOWY!N1957 -> 0 | J132: =0+ZADANIOWY!O1957 -> 0 | K132: 0 | L132: 0
C133: 4380 | D133: Zakup usług obejmujących tłumaczenia | E133: =0 -> 0 | F133: =0 -> 0 | G133: =0 -> 0 | H133: =0 -> 0 | I133: =0 -> 0 | J133: =0 -> 0 | K133: 0 | L133: 0
C134: 4390 | D134: Zakup usług obejmujących wykonanie ekspertyz, analiz i opinii | E134: =0+ZADANIOWY!J1958+ZADANIOWY!J1959 -> 0 | F134: =0+ZADANIOWY!K1958+ZADANIOWY!K1959 -> 0 | G134: =0+ZADANIOWY!L1958+ZADANIOWY!L1959 -> 0 | H134: =0+ZADANIOWY!M1958+ZADANIOWY!M1959 -> 0 | I134: =0+ZADANIOWY!N1958+ZADANIOWY!N1959 -> 0 | J134: =0+ZADANIOWY!O1958+ZADANIOWY!O1959 -> 0 | K134: 0 | L134: 0
C135: 4400 | D135: Opłaty za administrowanie i czynsze za budynki, lokale i pomieszczenia garażowe | E135: =0+ZADANIOWY!J1960 -> 0 | F135: =0+ZADANIOWY!K1960 -> 0 | G135: =0+ZADANIOWY!L1960 -> 0 | H135: =0+ZADANIOWY!M1960 -> 0 | I135: =0+ZADANIOWY!N1960 -> 0 | J135: =0+ZADANIOWY!O1960 -> 0 | K135: 0 | L135: 0
C136: 4410 | D136: Podróże służbowe krajowe | E136: =0+ZADANIOWY!J1961 -> 0 | F136: =0+ZADANIOWY!K1961 -> 0 | G136: =0+ZADANIOWY!L1961 -> 0 | H136: =0+ZADANIOWY!M1961 -> 0 | I136: =0+ZADANIOWY!N1961 -> 0 | J136: =0+ZADANIOWY!O1961 -> 0 | K136: 0 | L136: 0
C137: 4420 | D137: Podróże służbowe zagraniczne | E137: =0 -> 0 | F137: =0 -> 0 | G137: =0 -> 0 | H137: =0 -> 0 | I137: =0 -> 0 | J137: =0 -> 0 | K137: 0 | L137: 0
C138: 4430 | D138: Różne opłaty i składki | E138: =0+ZADANIOWY!J1962 -> 0 | F138: =0+ZADANIOWY!K1962 -> 0 | G138: =0+ZADANIOWY!L1962 -> 0 | H138: =0+ZADANIOWY!M1962 -> 0 | I138: =0+ZADANIOWY!N1962 -> 0 | J138: =0+ZADANIOWY!O1962 -> 0 | K138: 0 | L138: 0
C139: 4440 | D139: Odpisy na zakładowy fundusz świadczeń socjalnych | E139: =0+ZADANIOWY!J1963 -> 0 | F139: =0+ZADANIOWY!K1963 -> 0 | G139: =0+ZADANIOWY!L1963 -> 0 | H139: =0+ZADANIOWY!M1963 -> 0 | I139: =0+ZADANIOWY!N1963 -> 0 | J139: =0+ZADANIOWY!O1963 -> 0 | K139: 0 | L139: 0
C140: 4480 | D140: Podatek od nieruchomości | E140: =0+ZADANIOWY!J1964 -> 0 | F140: =0+ZADANIOWY!K1964 -> 0 | G140: =0+ZADANIOWY!L1964 -> 0 | H140: =0+ZADANIOWY!M1964 -> 0 | I140: =0+ZADANIOWY!N1964 -> 0 | J140: =0+ZADANIOWY!O1964 -> 0 | K140: 0 | L140: 0
C141: 4500 | D141: Pozostałe podatki na rzecz budżetów jednostek samorządu terytorialnego | E141: =0+ZADANIOWY!J1965 -> 0 | F141: =0+ZADANIOWY!K1965 -> 0 | G141: =0+ZADANIOWY!L1965 -> 0 | H141: =0+ZADANIOWY!M1965 -> 0 | I141: =0+ZADANIOWY!N1965 -> 0 | J141: =0+ZADANIOWY!O1965 -> 0 | K141: 0 | L141: 0
C142: 4510 | D142: Opłaty na rzecz budżetu państwa | E142: =0+ZADANIOWY!J1966 -> 0 | F142: =0+ZADANIOWY!K1966 -> 0 | G142: =0+ZADANIOWY!L1966 -> 0 | H142: =0+ZADANIOWY!M1966 -> 0 | I142: =0+ZADANIOWY!N1966 -> 0 | J142: =0+ZADANIOWY!O1966 -> 0 | K142: 0 | L142: 0
C143: 4520 | D143: Opłaty na rzecz budżetów jednostek samorządu terytorialnego | E143: =0+ZADANIOWY!J1967 -> 0 | F143: =0+ZADANIOWY!K1967 -> 0 | G143: =0+ZADANIOWY!L1967 -> 0 | H143: =0+ZADANIOWY!M1967 -> 0 | I143: =0+ZADANIOWY!N1967 -> 0 | J143: =0+ZADANIOWY!O1967 -> 0 | K143: 0 | L143: 0
C144: 4530 | D144: Podatek od towarów i usług (VAT) | E144: =0+ZADANIOWY!J1968 -> 0 | F144: =0+ZADANIOWY!K1968 -> 0 | G144: =0+ZADANIOWY!L1968 -> 0 | H144: =0+ZADANIOWY!M1968 -> 0 | I144: =0+ZADANIOWY!N1968 -> 0 | J144: =0+ZADANIOWY!O1968 -> 0 | K144: 0 | L144: 0
C145: 4580 | D145: Pozostałe odsetki | E145: =0+ZADANIOWY!J1969 -> 0 | F145: =0+ZADANIOWY!K1969 -> 0 | G145: =0+ZADANIOWY!L1969 -> 0 | H145: =0+ZADANIOWY!M1969 -> 0 | I145: =0+ZADANIOWY!N1969 -> 0 | J145: =0+ZADANIOWY!O1969 -> 0 | K145: 0 | L145: 0
C146: 4590 | D146: Kary i odszkodowania wypłacane na rzecz osób fizycznych | E146: =0+ZADANIOWY!J1970 -> 0 | F146: =0+ZADANIOWY!K1970 -> 0 | G146: =0+ZADANIOWY!L1970 -> 0 | H146: =0+ZADANIOWY!M1970 -> 0 | I146: =0+ZADANIOWY!N1970 -> 0 | J146: =0+ZADANIOWY!O1970 -> 0 | K146: 0 | L146: 0
C147: 4600 | D147: Kary, odszkodowania i grzywny wypłacane na rzecz osób prawnych i innych jednostek organizacyjnych | E147: =0 -> 0 | F147: =0 -> 0 | G147: =0 -> 0 | H147: =0 -> 0 | I147: =0 -> 0 | J147: =0 -> 0 | K147: 0 | L147: 0
C148: 4610 | D148: Koszty postępowania sądowego i prokuratorskiego | E148: =0+ZADANIOWY!J1971 -> 0 | F148: =0+ZADANIOWY!K1971 -> 0 | G148: =0+ZADANIOWY!L1971 -> 0 | H148: =0+ZADANIOWY!M1971 -> 0 | I148: =0+ZADANIOWY!N1971 -> 0 | J148: =0+ZADANIOWY!O1971 -> 0 | K148: 0 | L148: 0
C149: 4680 | D149: Odsetki od nieterminowych wpłat podatku od towarów i usług (VAT) | E149: =0 -> 0 | F149: =0 -> 0 | G149: =0 -> 0 | H149: =0 -> 0 | I149: =0 -> 0 | J149: =0 -> 0 | K149: 0 | L149: 0
C150: 4700 | D150: Szkolenia pracowników niebędących członkami korpusu służby cywilnej | E150: =0+ZADANIOWY!J1972 -> 0 | F150: =0+ZADANIOWY!K1972 -> 0 | G150: =0+ZADANIOWY!L1972 -> 0 | H150: =0+ZADANIOWY!M1972 -> 0 | I150: =0+ZADANIOWY!N1972 -> 0 | J150: =0+ZADANIOWY!O1972 -> 0 | K150: 0 | L150: 0
C151: 4710 | D151: Wpłaty na PPK finansowane przez podmiot zatrudniający | E151: =0+ZADANIOWY!J1973 -> 0 | F151: =0+ZADANIOWY!K1973 -> 0 | G151: =0+ZADANIOWY!L1973 -> 0 | H151: =0+ZADANIOWY!M1973 -> 0 | I151: =0+ZADANIOWY!N1973 -> 0 | J151: =0+ZADANIOWY!O1973 -> 0 | K151: 0 | L151: 0
B152: 02095 | D152: Pozostała działalność | E152: =SUM(E153,E162) -> 0 | F152: 0 | G152: 0 | H152: 0 | I152: 0 | J152: 0 | K152: 0 | L152: 0
D153: WYDATKI BIEŻĄCE | E153: =SUM(E154,E157:E161) -> 0 | F153: 0 | G153: 0 | H153: 0 | I153: 0 | J153: 0 | K153: 0 | L153: 0
D154: Wydatki jednostek budżetowych w tym na: | E154: =SUM(E155:E156) -> 0 | F154: 0 | G154: 0 | H154: 0 | I154: 0 | J154: 0 | K154: 0 | L154: 0
D155: wynagrodzenia i składki od nich naliczane | E155: =SUM(E163:E165) -> 0 | F155: 0 | G155: 0 | H155: 0 | I155: 0 | J155: 0 | K155: 0 | L155: 0
D156: wydatki związane z realizacją ich zadań statutowych | E156: =SUM(E166:E168) -> 0 | F156: 0 | G156: 0 | H156: 0 | I156: 0 | J156: 0 | K156: 0 | L156: 0
D157: Dotacje na zadania bieżące
D158: Świadczenia na rzecz osób fizycznych
D159: Wydatki na programy finansowane z UE
D160: Obsługa długu
D161: Poręczenia i gwarancje
D162: WYDATKI MAJĄTKOWE
C163: 4110 | D163: Składki na ubezpieczenia społeczne | E163: =0 -> 0 | F163: =0 -> 0 | G163: =0 -> 0 | H163: =0 -> 0 | I163: =0 -> 0 | J163: =0 -> 0 | K163: 0 | L163: 0
C164: 4120 | D164: Składki na Fundusz Pracy oraz Fundusz Solidarnościowy | E164: =0 -> 0 | F164: =0 -> 0 | G164: =0 -> 0 | H164: =0 -> 0 | I164: =0 -> 0 | J164: =0 -> 0 | K164: 0 | L164: 0
C165: 4170 | D165: Wynagrodzenia bezosobowe | E165: =0 -> 0 | F165: =0 -> 0 | G165: =0 -> 0 | H165: =0 -> 0 | I165: =0 -> 0 | J165: =0 -> 0 | K165: =E165-G165+H165 -> 0 | L165: =F165-I165+J165 -> 0 | M165: =IF(SUM(E165:L165)>0,"Tak","") ->  | N165: =IF(SUM(G165:J165)>0,"Tak","") ->  | O165: =IF(OR(E165<F165,K165<L165,G165<I165,H165<J165),"błędny urząd","") ->  | P165: =IF(OR(E165<0,F165<0,K165<0,L165<0),"ujemny plan","") -> 
C166: 4270 | D166: Zakup usług remontowych | E166: =0 -> 0 | F166: =0 -> 0 | G166: =0 -> 0 | H166: =0 -> 0 | I166: =0 -> 0 | J166: =0 -> 0 | K166: 0 | L166: 0
C167: 4300 | D167: Zakup usług pozostałych | E167: =0 -> 0 | F167: =0 -> 0 | G167: =0 -> 0 | H167: =0 -> 0 | I167: =0 -> 0 | J167: =0 -> 0 | K167: 0 | L167: 0
C168: 4500 | D168: Pozostałe podatki na rzecz budżetów jednostek samorządu terytorialnego | E168: =0 -> 0 | F168: =0 -> 0 | G168: =0 -> 0 | H168: =0 -> 0 | I168: =0 -> 0 | J168: =0 -> 0 | K168: 0 | L168: 0
A169: 400 | D169: Wytwarzanie i zaopatrywanie w energię elektryczną, gaz i wodę | E169: =SUM(E170,E179) -> 3560321 | F169: 3560321 | G169: 0 | H169: 0 | I169: 0 | J169: 0 | K169: 3560321 | L169: 3560321 | M169: Tak
D170: WYDATKI BIEŻĄCE | E170: =SUM(E171,E174:E178) -> 613534 | F170: 613534 | G170: 0 | H170: 0 | I170: 0 | J170: 0 | K170: 613534 | L170: 613534 | M170: Tak
D171: Wydatki jednostek budżetowych w tym na: | E171: =SUM(E172:E173) -> 613534 | F171: 613534 | G171: 0 | H171: 0 | I171: 0 | J171: 0 | K171: 613534 | L171: 613534 | M171: Tak
D172: wynagrodzenia i składki od nich naliczane | E172: =SUM(E183,E198,E227) -> 0 | F172: 0 | G172: 0 | H172: 0 | I172: 0 | J172: 0 | K172: 0 | L172: 0
D173: wydatki związane z realizacją ich zadań statutowych | E173: =SUM(E184,E199,E228) -> 613534 | F173: 613534 | G173: 0 | H173: 0 | I173: 0 | J173: 0 | K173: 613534 | L173: 613534 | M173: Tak
D174: Dotacje na zadania bieżące | E174: 0 | F174: 0 | G174: 0 | H174: 0 | I174: 0 | J174: 0 | K174: 0 | L174: 0
D175: Świadczenia na rzecz osób fizycznych | E175: 0 | F175: 0 | G175: 0 | H175: 0 | I175: 0 | J175: 0 | K175: 0 | L175: 0
D176: Wydatki na programy finansowane z UE | E176: 0 | F176: 0 | G176: 0 | H176: 0 | I176: 0 | J176: 0 | K176: 0 | L176: 0
D177: Obsługa długu | E177: 0 | F177: 0 | G177: 0 | H177: 0 | I177: 0 | J177: 0 | K177: 0 | L177: 0
D178: Poręczenia i gwarancje | E178: 0 | F178: 0 | G178: 0 | H178: 0 | I178: 0 | J178: 0 | K178: 0 | L178: 0
D179: WYDATKI MAJĄTKOWE | E179: 2946787 | F179: 2946787 | G179: 0 | H179: 0 | I179: 0 | J179: 0 | K179: 2946787 | L179: 2946787 | M179: Tak
B180: 40001 | E180: =SUM(E181,E190) -> 0 | F180: 0 | G180: 0 | H180: 0 | I180: 0 | J180: 0 | K180: 0 | L180: 0
D181: WYDATKI BIEŻĄCE | E181: =SUM(E182,E185:E189) -> 0 | F181: 0 | G181: 0 | H181: 0 | I181: 0 | J181: 0 | K181: 0 | L181: 0
D182: Wydatki jednostek budżetowych w tym na: | E182: =SUM(E183:E184) -> 0 | F182: 0 | G182: 0 | H182: 0 | I182: 0 | J182: 0 | K182: 0 | L182: 0
D183: wynagrodzenia i składki od nich naliczane | E183: =SUM(E192:E194) -> 0 | F183: 0 | G183: 0 | H183: 0 | I183: 0 | J183: 0 | K183: 0 | L183: 0
D184: wydatki związane z realizacją ich zadań statutowych | E184: =SUM(E191) -> 0 | F184: 0 | G184: 0 | H184: 0 | I184: 0 | J184: 0 | K184: 0 | L184: 0
D185: Dotacje na zadania bieżące
D186: Świadczenia na rzecz osób fizycznych
D187: Wydatki na programy finansowane z UE
D188: Obsługa długu
D189: Poręczenia i gwarancje
D190: WYDATKI MAJĄTKOWE
C191: 2970 | E191: =0+ZADANIOWY!J2032 -> 0 | F191: =0+ZADANIOWY!K2032 -> 0 | G191: =0+ZADANIOWY!L2032 -> 0 | H191: =0+ZADANIOWY!M2032 -> 0 | I191: =0+ZADANIOWY!N2032 -> 0 | J191: =0+ZADANIOWY!O2032 -> 0 | K191: 0 | L191: 0
C192: 4010 | E192: =0+ZADANIOWY!J9083 -> 0 | F192: =0+ZADANIOWY!K9083 -> 0 | G192: =0+ZADANIOWY!L9083 -> 0 | H192: =0+ZADANIOWY!M9083 -> 0 | I192: =0+ZADANIOWY!N9083 -> 0 | J192: =0+ZADANIOWY!O9083 -> 0 | K192: 0 | L192: 0
C193: 4110 | E193: =0+ZADANIOWY!J9084 -> 0 | F193: =0+ZADANIOWY!K9084 -> 0 | G193: =0+ZADANIOWY!L9084 -> 0 | H193: =0+ZADANIOWY!M9084 -> 0 | I193: =0+ZADANIOWY!N9084 -> 0 | J193: =0+ZADANIOWY!O9084 -> 0 | K193: 0 | L193: 0
C194: 4120 | E194: =0+ZADANIOWY!J9085 -> 0 | F194: =0+ZADANIOWY!K9085 -> 0 | G194: =0+ZADANIOWY!L9085 -> 0 | H194: =0+ZADANIOWY!M9085 -> 0 | I194: =0+ZADANIOWY!N9085 -> 0 | J194: =0+ZADANIOWY!O9085 -> 0 | K194: 0 | L194: 0
B195: 40002 | D195: Dostarczanie wody | E195: =SUM(E196,E205) -> 3560321 | F195: 3560321 | G195: 0 | H195: 0 | I195: 0 | J195: 0 | K195: 3560321 | L195: 3560321 | M195: Tak
D196: WYDATKI BIEŻĄCE | E196: =SUM(E197,E200:E204) -> 613534 | F196: 613534 | G196: 0 | H196: 0 | I196: 0 | J196: 0 | K196: 613534 | L196: 613534 | M196: Tak
D197: Wydatki jednostek budżetowych w tym na: | E197: =SUM(E198:E199) -> 613534 | F197: 613534 | G197: 0 | H197: 0 | I197: 0 | J197: 0 | K197: 613534 | L197: 613534 | M197: Tak
D198: wynagrodzenia i składki od nich naliczane | E198: =SUM(E206:E208) -> 0 | F198: 0 | G198: 0 | H198: 0 | I198: 0 | J198: 0 | K198: 0 | L198: 0
D199: wydatki związane z realizacją ich zadań statutowych | E199: =SUM(E209:E221) -> 613534 | F199: 613534 | G199: 0 | H199: 0 | I199: 0 | J199: 0 | K199: 613534 | L199: 613534 | M199: Tak
D200: Dotacje na zadania bieżące
D201: Świadczenia na rzecz osób fizycznych
D202: Wydatki na programy finansowane z UE
D203: Obsługa długu
... 4294 more rows
